{"text_format":"1","workbook":"xlsx","n_sheets":10,"sheets":["Introduktion","Antaganden","Resultat","Detaljerade resultat","Beräkningsblad-->","Modell","Tabeller","Anställning med ersättning","Skatter","Listor"],"not_rendered":{"charts":8,"images":4,"macros":1,"external_links":0,"defined_names":4,"comments":3,"pivot_tables":0},"unopened":[],"bounds":{"document_bytes":16777216,"sheet_cells":100000,"rows_first":2000,"rows_last":500,"rows_between":2000,"halvings":0,"cell_chars":16384,"cell_head_chars":4096},"cells_cut":0,"cells_raw":0,"read":"whole","date_system":"1900"}

{"sheet":"Introduktion","index":0,"n_rows":21,"n_cols":10,"rows_kept":21,"cut":false,"hidden":false,"merged":[[5,1,5,10],[6,1,6,6],[8,1,8,7],[1,1,1,6],[20,5,20,6],[20,1,20,4]]}
[]
[null,"SAMHÄLLSEKONOMISK KALKYLMODELL FÖR SYSSELSÄTTNINGSKRAV\n"]
[]
[null,"Introduktion"]
[]
[null,"Syftet med modellen är att ge offentliga organisationer ett underlag gällande de ekonomiska konsekvenserna vid användning av sysselsättningskrav i upphandlingar. Beräkningsmodellen gör det möjligt att fördela dessa konsekvenser för olika aktörer samt samlat för samhället. Modellen kan fungera som ett verktyg för beslutfattare inför beslut om sysselsättningskrav i upphandling. Den kan också fungera som ett dialogverktyg mellan upphandlare, leverantörer och övriga relevanta myndigheter.\n\nModellen är en kalkylator som beräknar det samhällsekonomiska värdet av att en individ lämnar arbetslöshet för sysselsättning (anställning, lärlingsanställning eller praktik). Modellen beräknar det samhällsekonomiska värdet under tiden för sysselsättningskravet för olika målgrupper, fördelat för individ, kommun, myndigheter och samhället i stort. Modellen bygger på ett antagande om att individer som tar del av sysselsättningskravet hade fortsatt vara arbetslösa under tiden för sysselsättningskravet. Kalkylmodellen beräknar inte några dynamiska eller långsiktiga effekter  såsom att individer får högre sannolikhet till framtida anställning till följd av att de får arbetslivserfarenhet via sysselsättningskrav. För en genomgång av effekter som kan uppstå vid sysselsättningskrav se exempelvis Konkurrensverket (2017).  Med arbetslös åsyftas personer som är inskrivna på Arbetsförmedlingen och innefattar såväl öppet arbetslösa samt deltagare i etablerings- och arbetsmarknadspolitiska program.  \n\nAtt en individ går från arbetslöshet till sysselsättning medför ofta sociala effekter, såsom förbättrad hälsa, ökad känsla av sammanhang med mera. Intangibla effekter av detta slag inkluderas inte i denna modell eftersom de är svåra att uppskatta schablonmässigt men är ändock något som bör beaktas i samband med beslut om sysselsättningskrav. \n\nModellen har tagits fram av Ramboll på uppdrag av ESF-projektet Sysselsättning genom offentlig upphandling och bygger på tidigare framtagna modellen; Delander och Månsson (2007) och Delander och Ekberg (2010). Målbilden har varit en modell med hög anpassningsgrad för att den ska kunna användas för olika typer av sysselsättningskrav (anställning, lärling, praktik) och för olika målgrupper (ålder, tid i arbetslöshet och om individen är nyanländ). Modellen togs fram under 2019 men har därefter uppdaterats med värden för år 2021."]
[]
[]
[null,"Modellen innehåller kostnader och intäkter fördelat för följande aktörer:"]
[null,"Individ"]
[null,"Kommun"]
[null,"Region"]
[null,"Stat"]
[null,"Arbetsgivare"]
[]
[]
[]
[]
[]
[]
[null,"1. Val av anställningsform                             2. Val av anställningsstöd och produktivitet",null,null,null,"          3. Val av målgrupp",null,null,null,"4. Resultat"]

{"sheet":"Antaganden","index":1,"n_rows":46,"n_cols":8,"rows_kept":46,"cut":false,"hidden":false,"merged":[]}
[]
["ANTAGANDEN"]
[]
[null,"PARAMETER",null,"VÄRDE",null,"BESKRIVNING"]
[]
[null,"Upphandlande organisation",null,"Kommunal",null,"Här anges vilken aktör som den upphandlade organisationen tillhör. Används för att fördela kostnader kopplade till upphandlingen."]
[]
[null,"Sysselsättningskravet",null,null," "]
[]
[null,"Sysselsättningskrav",null,"Praktik",null,"Här anges vilken typ av sysselsättningskrav som modellen ska utgå ifrån. Valet styr vilka parametrar som är relevanta att specificera (blåmarkerade)."]
[]
[null,"Antal månader",null,6,null,"Antalet månader som sysselsättningskravet gäller."]
[]
[null,"Antal tjänster",null,1,null,"Antalet tjänster som sysselsättningskravet gäller."]
[]
[null,"Omfattning av tjänst",null,1,null,"Omfattningen sysselsättningskravet, om heltid anges 100%."]
[]
[null,"Bruttolön per månad (heltid)",null,0,null,"Här anges den uppskattade bruttolönen som modellen ska utgå från. Bruttolönen påverkar kostnaden för arbetsgivare och intäkter för individ och det offentliga."]
[]
[null,"Anställningsstöd",null,null,null,"Här anges om och i så fall vilket anställningsstöd som ska inkluderas i modellberäkningarna.",null,"Relevant vid anställning/lärling"]
[]
[null,"Produktionsfaktor (andel av bruttolön)",null,0,null,"Här anges det relativa produktionsvärdet som ska användas i beräkningarna. Grundantagandet är att produktionsvärdet motsvarar den antagna lönen men produktionsvärdet går att justera.",null,"Relevant vid anställning"]
[]
[null,"Bruttolön per månad, handledare",null,30000,null,"Här anges den antagna bruttolönen för handledare. Används i beräkningarna av kostnaden för handledning för lärlings- och praktikplatser.",null,"Relevant vid lärling/praktik"]
[]
[null,"Tid för handledning (andel av heltidstjänst)",null,0.1,null,"Här anges den uppskattade tidsåtgången för handledning. Används i beräkningarna av kostnaden för handledning för lärlings- och praktikplatser och uttrycks som andel av heltidstjänst."]
[]
[null,"Administrationskostnad (upphandling m.m.)",null,10000,null,"Här ska arbetsgivarens administrationskostnad för upphandlingen med sysselsättningskrav anges. Observera att det är den ytterligare kostnaden till följd av att ett sysselsättningskrav ställs som ska anges.",null,"Relevant för arbetsgivare"]
[]
[null,"Upphandlingskostnad",null,10000,null,"Här ska upphandlade organisationens administrationskostnad för sysselsättningskrav anges. Observera att det är den ytterligare kostnaden till följd av att ett sysselsättningskrav anställs som ska anges.",null,"Relevant för arbetsgivare"]
[]
[null,"Produktionsvärde per månad (praktik)",null,8000,null,"Här anges produktionsvärdet i de fall sysselsättningen är oavlönad (praktikanställning). Produktionsvärde ska uppskattas utifrån motsvarande månadslön (brutto).",null,"Relavant för upphandlande organisation"]
[]
[null,"Bonus",null,0,null,"Här anges storleken på eventuell bonus från upphandlande organisation till arbetsgivare vid uppfyllnad av sysselsättningskravet."]
[]
[null,"Målgrupp"]
[]
[null,"Ålder",null,"20-23",null,"Här anges vilken åldersgrupp som är aktuell för målgruppen. Ålder påverkar typ och storlek på ersättning samt arbetsgivaravgift (20-23 år)."]
[]
[null,"Tid i arbetslöshet",null,"6-11 mån",null,"Här anges antalet månader som personer i målgruppen varit arbetslösa. Det påverkar storleken och möjligheten till ersättning. "]
[]
[null,"Nyanländ",null,null,null,"Här anges huruvida målgruppen för sysselsättningskravet är nyanlände eller inte. Nyanlända antas i modellen ha rätt till etableringsersättning."]
[]
[null,"A-kassa",null,null,null,"Här anges huruvida målgruppen bedöms ha rätt till ersättning från A-kassa eller inte. Ska endast anges om målgruppen uppfyller kriterierna för A-kassa."]
[]
[null,"Bostadsbidrag",null,"Ja",null,"Här anges huruvida målgruppen bedöms ha rätt till bostadsbidrag från Försäkringskassan eller inte."]

{"sheet":"Resultat","index":2,"n_rows":61,"n_cols":9,"rows_kept":61,"cut":false,"hidden":false,"merged":[[59,1,59,8],[45,1,45,8],[49,1,49,8],[52,1,52,8],[56,1,56,8]]}
[]
[null,"RESULTAT"]
[]
[null,null,null,null,null,null,null,null,{"$f":"TODAY()","v":"2021-02-12"}]
[null,"BERÄKNINGSVÄRDEN"]
[]
[null,"Upphandlande organisation",{"$f":"IF(Antaganden!D6=0,\"-\",Antaganden!D6)","v":"Kommunal"},"Ålder",{"$f":"IF(Antaganden!D38=0,\"-\",Antaganden!D38)","v":"20-23"},"Bruttolön (handledare)",{"$f":"IF(Antaganden!D24=0,\"-\",Antaganden!D24)","v":30000}]
[null,"Sysselsättningskrav",{"$f":"IF(Antaganden!D10=0,\"-\",Antaganden!D10)","v":"Praktik"},"Tid i arbetslöshet",{"$f":"IF(Antaganden!D40=0,\"-\",Antaganden!D40)","v":"6-11 mån"},"Tid för handledning",{"$f":"IF(Antaganden!D26=0,\"-\",Antaganden!D26)","v":0.1}]
[null,"Antal månader",{"$f":"IF(Antaganden!D12=0,\"-\",Antaganden!D12)","v":6},"Nyanländ",{"$f":"IF(Antaganden!D42=0,\"-\",Antaganden!D42)","v":"-"},"Administrationskostnad (arbetsgivare)",{"$f":"IF(Antaganden!D28=0,\"-\",Antaganden!D28)","v":10000}]
[null,"Antal tjänster",{"$f":"IF(Antaganden!D14=0,\"-\",Antaganden!D14)","v":1},"A-kassa",{"$f":"IF(Antaganden!D44=0,\"-\",Antaganden!D44)","v":"-"},"Upphandlingskostnad",{"$f":"IF(Antaganden!D30=0,\"-\",Antaganden!D30)","v":10000}]
[null,"Omfattning av tjänst",{"$f":"IF(Antaganden!D16=0,\"-\",Antaganden!D16)","v":1},"Bostadsbidrag",{"$f":"IF(Antaganden!D46=0,\"-\",Antaganden!D46)","v":"Ja"},"Bonus",{"$f":"IF(Antaganden!D34=0,\"-\",Antaganden!D34)","v":"-"}]
[null,"Bruttolön per månad",{"$f":"IF(Antaganden!D18=0,\"-\",Antaganden!D18)","v":"-"}]
[null,"Anställningsstöd",{"$f":"IF(Antaganden!D20=0,\"-\",Antaganden!D20)","v":"-"}]
[null,"Produktionsfaktor",{"$f":"IF(OR(Antaganden!D10=\"Anställning\",Antaganden!D10=\"Lärling\"),Antaganden!D22,\"-\")","v":"-"}]
[null,"Produktionsvärde (praktik)",{"$f":"IF(Antaganden!D10=\"Praktik\",Antaganden!D32,\"-\")","v":8000}]
[]
[]
[null,"RESULTAT"]
[]
[]
[]
[]
[]
[]
[]
[null,"Aktör","Totalt","Per individ"]
[null,"Individ",{"$f":"D61","v":0},{"$f":"IFERROR(C27/Antaganden!$D$14,0)","v":0}]
[null,"Kommun",{"$f":"H61","v":-10},{"$f":"IFERROR(C28/Antaganden!$D$14,0)","v":-10}]
[null,"Region",{"$f":"G61","v":0},{"$f":"IFERROR(C29/Antaganden!$D$14,0)","v":0}]
[null,"Stat",{"$f":"F61","v":-10.929600000000002},{"$f":"IFERROR(C30/Antaganden!$D$14,0)","v":-10.929600000000002}]
[null,"Arbetsgivare",{"$f":"I61","v":34.79358400000001},{"$f":"IFERROR(C31/Antaganden!$D$14,0)","v":34.79358400000001}]
[null,"Samhället",{"$f":"SUM(C27:C31)","v":13.863984000000009},{"$f":"SUM(D27:D31)","v":13.863984000000009}]
[]
[]
[]
[]
[]
[]
[null,"Beskrivning","I figur och tabell ovan framgår förändringen till följd av att en individ (och total) får anställning via sysselsättningskrav uppdelat på aktör. "]
[]
[]
[]
[null,null,"Summa 2, 3, 7",null,"Summa 4-6"]
[null,null,"(1)","(2)","(3)","(4)","(5)","(6)","(7)"]
[null,null,"Samhället","Individ","Netto offentlig sektor","Stat","Region","Kommun","Arbetsgivare"]
[null,"A"]
[null,"1. Ökad produktion av varor och tjänster",{"$f":"SUM(D47,E47,I47)","v":58.150399999999998},{"$f":"Modell!F8*(Antaganden!D12*Antaganden!D14*Antaganden!D16)/1000","v":0},{"$f":"SUM(F47:H47)","v":8.8703999999999983},{"$f":"Modell!H8*(Antaganden!D12*Antaganden!D14*Antaganden!D16)/1000","v":8.8703999999999983},{"$f":"Modell!I8*(Antaganden!D12*Antaganden!D14*Antaganden!D16)/1000","v":0},{"$f":"Modell!J8*(Antaganden!D12*Antaganden!D14*Antaganden!D16)/1000","v":0},{"$f":"Modell!K8*(Antaganden!D12*Antaganden!D14*Antaganden!D16)/1000","v":49.28}]
[null,"2. Ökad inbetalning av skatter och avgifter",{"$f":"SUM(D48,E48,I48)","v":0},{"$f":"SUM(Modell!F10,Modell!F11,Modell!F12)*(Antaganden!D12*Antaganden!D14*Antaganden!D16)/1000","v":0},{"$f":"SUM(F48:H48)","v":0},{"$f":"SUM(Modell!H10,Modell!H11,Modell!H12)*(Antaganden!D12*Antaganden!D14*Antaganden!D16)/1000","v":0},{"$f":"SUM(Modell!I10,Modell!I11,Modell!I12)*(Antaganden!D12*Antaganden!D14*Antaganden!D16)/1000","v":0},{"$f":"SUM(Modell!J10,Modell!J11,Modell!J12)*(Antaganden!D12*Antaganden!D14*Antaganden!D16)/1000","v":0}]
[]
[null,"B"]
[null,"Minskade utbetalningar av transfereringar",{"$f":"SUM(D51,E51,I51)","v":0},{"$f":"Modell!F14*(Antaganden!D12*Antaganden!D14*Antaganden!D16)/1000","v":0},{"$f":"SUM(F51:H51)","v":0},{"$f":"Modell!H14*(Antaganden!D12*Antaganden!D14*Antaganden!D16)/1000","v":0},null,{"$f":"Modell!J14*(Antaganden!D12*Antaganden!D14*Antaganden!D16)/1000","v":0}]
[]
[null,"C"]
[null,"1. Kostnad för sysselsättningskrav",{"$f":"SUM(D54,E54,I54)","v":-44.286415999999996},null,{"$f":"SUM(F54:H54)","v":-10},{"$f":"Modell!H19*(Antaganden!D12)/1000","v":0},{"$f":"Modell!I19*(Antaganden!D12)/1000","v":0},{"$f":"Modell!J19*(Antaganden!D12)/1000","v":-10},{"$f":"Modell!K19*(Antaganden!D12)/1000","v":-34.286415999999996}]
[null,"2. Arbetsmarknadsstöd",{"$f":"SUM(D55,E55,I55)","v":0},null,{"$f":"SUM(F55:H55)","v":-19.8},{"$f":"Modell!H20*(Antaganden!D12*Antaganden!D14*Antaganden!D16)/1000","v":-19.8},{"$f":"Modell!I20*(Antaganden!D12*Antaganden!D14*Antaganden!D16)/1000","v":0},{"$f":"Modell!J20*(Antaganden!D12*Antaganden!D14*Antaganden!D16)/1000","v":0},{"$f":"Modell!K20*(Antaganden!D12*Antaganden!D14*Antaganden!D16)/1000","v":19.8}]
[]
[null,"D"]
[null,"Minskad inbetalning av inkomstskatt på skattepliktiga transfereringar",{"$f":"SUM(D58,E58,I58)","v":0},{"$f":"Modell!F22*(Antaganden!D12*Antaganden!D14*Antaganden!D16)/1000","v":0},{"$f":"SUM(F58:H58)","v":0},{"$f":"Modell!H22*(Antaganden!D12*Antaganden!D14*Antaganden!D16)/1000","v":0},{"$f":"Modell!I22*(Antaganden!D12*Antaganden!D14*Antaganden!D16)/1000","v":0},{"$f":"Modell!J22*(Antaganden!D12*Antaganden!D14*Antaganden!D16)/1000","v":0},{"$f":"Modell!K22*(Antaganden!D12*Antaganden!D14*Antaganden!D16)/1000","v":0}]
[]
[null,"A-D"]
[null,"Summa",{"$f":"SUM(D61,E61,I61)","v":13.863984000000009},{"$f":"SUM(D58,D55,D51,D54,D48,D47)","v":0},{"$f":"SUM(F61:H61)","v":-20.929600000000001},{"$f":"SUM(F58,F55,F51,F54,F48,F47)","v":-10.929600000000002},{"$f":"SUM(G58,G55,G51,G54,G48,G47)","v":0},{"$f":"SUM(H58,H55,H51,H54,H48,H47)","v":-10},{"$f":"SUM(I58,I55,I51,I54,I48,I47)","v":34.79358400000001}]

{"sheet":"Detaljerade resultat","index":3,"n_rows":100,"n_cols":7,"rows_kept":100,"cut":false,"hidden":false,"merged":[[16,2,16,6],[85,1,85,7],[18,1,18,7],[39,6,39,7],[67,1,67,7]]}
[]
[null,"DETALJERADE RESULTAT"]
[]
[null,null,null,null,null,null,{"$f":"TODAY()","v":"2021-02-12"}]
[null,"BERÄKNINGSVÄRDEN"]
[]
[null,"Upphandlande organisation",{"$f":"IF(Antaganden!D6=0,\"-\",Antaganden!D6)","v":"Kommunal"},"Ålder",{"$f":"IF(Antaganden!D38=0,\"-\",Antaganden!D38)","v":"20-23"},"Bruttolön (handledare)",{"$f":"Antaganden!D24","v":30000}]
[null,"Sysselsättningskrav",{"$f":"IF(Antaganden!D10=0,\"-\",Antaganden!D10)","v":"Praktik"},"Tid i arbetslöshet",{"$f":"IF(Antaganden!D40=0,\"-\",Antaganden!D40)","v":"6-11 mån"},"Tid för handledning",{"$f":"Antaganden!D26","v":0.1}]
[null,"Antal månader",{"$f":"Antaganden!D12","v":6},"Nyanländ",{"$f":"IF(Antaganden!D42=0,\"-\",Antaganden!D42)","v":"-"},"Administrationskostnad (arbetsgivare)",{"$f":"Antaganden!D28","v":10000}]
[null,"Antal tjänster",{"$f":"Antaganden!D16*Antaganden!D14","v":1},"A-kassa",{"$f":"IF(Antaganden!D44=0,\"-\",Antaganden!D44)","v":"-"},"Upphandlingskostnad",{"$f":"Antaganden!D30","v":10000}]
[null,"Omfattning av tjänst",{"$f":"IF(Antaganden!D16=0,\"-\",Antaganden!D16)","v":1},"Bostadsbidrag",{"$f":"IF(Antaganden!D46=0,\"-\",Antaganden!D46)","v":"Ja"},"Bonus",{"$f":"IF(Antaganden!D36=0,\"-\",Antaganden!D36)","v":"-"}]
[null,"Bruttolön per månad",{"$f":"IF(Antaganden!D18=0,\"-\",Antaganden!D18)","v":"-"}]
[null,"Anställningsstöd",{"$f":"IF(Antaganden!D20=0,\"-\",Antaganden!D20)","v":"-"}]
[null,"Produktionsfaktor",{"$f":"IF(OR(Antaganden!D10=\"Anställning\",Antaganden!D10=\"Lärling\"),Antaganden!D22,\"-\")","v":"-"}]
[null,"Produktionsvärde (praktik)",{"$f":"IF(Antaganden!D10=\"Praktik\",Antaganden!D32,\"-\")","v":8000}]
[]
[null,"Beskrivning:","I denna flik redovisas detaljerade resultat för; individen, det offentliga och arbetsgivare. Intäkter och kostnader till följd av sysselsättningskravet anges för en individ per månad och uttrycks i svenska kronor."]
[]
[null,"RESULTAT PER INDIVID/MÅNAD"]
[null,"Intäkter/Kostnader per individ när denne är sysselsatt genom sysselsättningskrav"]
[]
[]
[]
[]
[]
[null,null,null,null,"Lön efter skatt",{"$f":"Modell!AJ62","v":0}]
[]
[]
[]
[]
[]
[]
[null,"Beskrivning","I figuren ovan framgår den enskildes lön efter skatt till följd av att de fått sysselsättning via sysselsättningskrav. "]
[]
[null,"Transfereringar per månad per individ innan sysselsättning"]
[]
[]
[]
[]
[null,null,null,null,"Transfereringar innan skatt",{"$f":"Modell!AN79","v":10400}]
[null,null,null,null,"Skatt på transfereringar",{"$f":"Modell!AN97-Modell!AN79","v":0}]
[null,null,null,null,"Transfereringar efter skatt",{"$f":"Modell!AN97","v":10400}]
[]
[]
[]
[]
[]
[]
[null,"Beskrivning","I figuren ovan framgår den enskildes transfereringar innan den får sysselsättning via sysselsättningskrav. "]
[]
[null,"Förändring per månad för individen när denna går från arbetslöshet till sysselsättning"]
[]
[]
[]
[]
[]
[null,null,null,null,"Förändring per månad",{"$f":"Modell!F23","v":0}]
[]
[]
[]
[]
[]
[]
[null,"Beskrivning","I figuren ovan framgår den enskildes ekonomiska förändring till följd av att denne fått anställning via sysselsättningskrav."]
[null,null,"Boxar till höger om mittlinjen är intäkter och de till vänster beskriver kostnader till följd av sysselsättningskravet."]
[]
[]
[null,"RESULTAT FÖR DET OFFENTLIGA/MÅNAD"]
[null,"Förändring för det offentliga när en individ går från arbetslöshet till sysselsättning"]
[]
[]
[]
[]
[]
[null,null,null,null,"Förändring per månad",{"$f":"SUM(Modell!AC78:AE78)","v":-3488.2666666666673}]
[]
[]
[]
[]
[]
[]
[null,"Beskrivning","I figuren ovan framgår det offentligas ekonomiska förändring till följd av sysselsättningskravet. "]
[null,null,"Boxar till höger om mittlinjen är intäkter och de till vänster beskriver kostnader till följd av sysselsättningskravet."]
[]
[]
[null,"RESULTAT FÖR ARBETSGIVARE/MÅNAD"]
[null,"Förändring för arbetsgivare när en individ går från arbetslöshet till sysselsättning"]
[]
[]
[]
[]
[]
[null,null,null,null,"Förändring per månad",{"$f":"Modell!S47","v":5798.9306666666671}]
[]
[]
[]
[]
[]
[]
[null,"Beskrivning","I figuren ovan framgår arbetsgivares ekonomiska förändring till följd av sysselsättningskravet."]

{"sheet":"Beräkningsblad-->","index":4,"n_rows":0,"n_cols":0,"rows_kept":0,"cut":false,"hidden":false,"merged":[]}

{"sheet":"Modell","index":5,"n_rows":102,"n_cols":43,"rows_kept":102,"cut":false,"hidden":false,"merged":[[4,41,4,42],[2,3,2,10],[4,27,4,28],[4,34,4,35],[4,38,4,39],[4,19,4,20],[4,16,4,17],[4,30,4,31],[4,13,4,14],[4,22,4,23]]}
[null,null,null,null,null,null,"Arbete"]
[]
["Organisation",{"$f":"Antaganden!D6","v":"Kommunal"},null,"Intäkts- och kostnadsposter"]
[null,null,null,null,1,2,3,4,5,6,7]
["Sysselsättningskrav",{"$f":"Antaganden!D10","v":"Praktik"},null,null,"Samhället","Individer","Netto  (offentlig sektor)","Stat","Region","Kommun","Arbetsgivare",null,null,"Upphandlarkostnad",null,null,"Arbetsgivarkostnad (övrigt)",null,null,"Arbetsgivarstöd",null,null,"Lönekostnader/Intäkter Praktik",null,null,null,null,"Lönekostnader/Intäkter",null,null,"Lönekostnader/Intäkter (handledare)",null,null,null,"Fördelning av inkomst mellan aktörer",null,null,null,"Transfereringar innan",null,null,"Transfereringar efter"]
["Bruttolön per månad (heltid)",{"$f":"Antaganden!D18","v":0},null,"A","Summa 2-3, 7",null,"Summa 4-6"]
[null,null,null,"Produktionstillskott",null,null,null,null,null,null,null,null,null,"Administration (upphandling m.m.)",{"$f":"B30","v":10000},null,null,null,null,"Anställning",null,null,"Antagen Bruttolön/månad",{"$f":"IF(B5=\"Praktik\",B27,0)","v":8000},null,null,null,"Antagen Bruttolön/månad",{"$f":"IF(OR(B5=\"Anställning\",B5=\"Lärling\"),(B6*B15),0)","v":0},null,"Antagen Bruttolön/månad",{"$f":"B24","v":30000},null,null,"Antagen Bruttolön/månad",{"$f":"IF(OR(B5=\"Anställning\",B5=\"Lärling\"),(B6*B15),0)","v":0},null,null,"Antagen bruttolön/månad",{"$f":"IF(OR(B5=\"Anställning\",B5=\"Lärling\"),(B6*B15),IF(B5=\"Praktik\",20000,0))","v":20000},null,"Antagen bruttolön/månad",{"$f":"IF(OR(B5=\"Anställning\",B5=\"Lärling\"),(B6*B15),IF(B5=\"Praktik\",20000,0))","v":20000}]
[null,null,null,"1. Ökad produktion av varor och tjänster",{"$f":"SUM(F8,G8,K8)","v":9691.7333333333336},{"$f":"AC20","v":0},{"$f":"SUM(H8:J8)","v":1478.3999999999996},{"$f":"--(IF(B5=\"Anställning\",(0.18*AC20),IF(B5=\"Lärling\",(AC24-AC20),IF(B5=\"Praktik\",(X24-X20)))))","v":1478.3999999999996},null,null,{"$f":"--IF(B5=\"Anställning\",(-1)*AC20*(1-B25),IF(B5=\"Lärling\",(-1)*AC20*(1-B25),IF(B5=\"Praktik\",X20)))","v":8213.3333333333339},null,null,"Adm. Kostnad per månad & person",{"$f":"IFERROR((-1)*O7/(B16*B17),0)","v":-1666.6666666666667},null,"Handledning",{"$f":"(-1)*AF16*B26","v":-4047.7360000000003},null,null,null,null,null,null,null,null,null,null,null,null,null,null,null,null,null,null,null,null,"Norm",{"$f":"IF(Antaganden!D10=\"\",0,10400)","v":10400},null,"Norm",{"$f":"IF(IF(Antaganden!D10=\"\",0,10400)-AJ28>0,IF(Antaganden!D10=\"\",0,10400)-AJ28,0)","v":10400}]
["Ålder (20-23, 24-25, 26-65)",{"$f":"Antaganden!D38","v":"20-23"},null,"2. Ökad inbetalning av skatt: ",null,null,null,null,null,null,null,null,null,null,null,null,"Administration (upphandling m.m.)",{"$f":"IFERROR((-1)*B29/(B16*B17),0)","v":-1666.6666666666667},null,"Nystartsjobb",{"$f":"IF(AND(B5=\"Anställning\",B19=\"Ja\"),IF(B11=\"Ja\",IF(((AC13/12)*'Anställning med ersättning'!G5)<'Anställning med ersättning'!F5,((AC13/12)*'Anställning med ersättning'!G5),'Anställning med ersättning'!F5),IF(AND(B9=\"26-65\",B10=\"12-23 mån\",B11=\"Nej\"),IF(((AC13/12)*'Anställning med ersättning'!G12)<'Anställning med ersättning'!F12,((AC13/12)*'Anställning med ersättning'!G12),'Anställning med ersättning'!F12),IF(AND(B9=\"26-65\",B10=\"24-35 mån\",B11=\"Nej\"),IF(((AC13/12)*'Anställning med ersättning'!G13)<'Anställning med ersättning'!F13,((AC13/12)*'Anställning med ersättning'!G13),'Anställning med ersättning'!F13),IF(AND(B9=\"26-65\",B10=\"36- mån\",B11=\"Nej\"),IF(((AC13/12)*'Anställning med ersättning'!G14)<'Anställning med ersättning'!F14,((AC13/12)*'Anställning med ersättning'!G14),'Anställning med ersättning'!F14),IF(AND(B9=\"20-25\",OR(B10=\"6-11 mån\",B10=\"12-23 mån\"),B11=\"Nej\"),IF(((AC13/12)*'Anställning med ersättning'!G9)<'Anställning med ersättning'!F9,(AC13/12)*'Anställning med ersättning'!G9,'Anställning med ersättning'!F9),IF(AND(B9=\"20-25\",B10=\"24-35 mån\",B11=\"Nej\"),IF(((AC13/12)*'Anställning med ersättning'!G10)<'Anställning med ersättning'!F10,((AC13/12)*'Anställning med ersättning'!G10),'Anställning med ersättning'!F10),IF(AND(B9=\"20-25\",B10=\"36- mån\",B11=\"Nej\"),IF(((AC13/12)*'Anställning med ersättning'!G11)<'Anställning med ersättning'!F11,((AC13/12)*'Anställning med ersättning'!G11),'Anställning med ersättning'!F11),0))))))),0)*(-1)","v":0},null,null,null,null,null,null,null,null,null,null,null,null,null,"Beräkning av avgifter baserat på statsskuld.se",null,null,null,"Etableringsersättning",{"$f":"IF(AND($B$11=\"Ja\",B12=\"Nej\"),$AN$42,0)","v":0},null,"Etableringsersättning",{"$f":"IF(($AQ$8-$AQ$13)>AN9,AN9,($AQ$8-$AQ$13))","v":0}]
["Tid i arbetslöshet (<6 mån, 6-11 mån, 12-23 mån, 24- mån)",{"$f":"Antaganden!D40","v":"6-11 mån"},null,"a. Inkomstskatt",{"$f":"SUM(F10,G10,K10)","v":0},{"$f":"SUM(AJ16,AJ17,AJ19,AJ20,AJ21)*(-1)","v":0},{"$f":"SUM(H10:J10)","v":0},{"$f":"SUM(AJ21)","v":0},{"$f":"SUM(AJ17)","v":0},{"$f":"SUM(AJ16)","v":0},0,null,null,"Bonus",{"$f":"B31","v":0},null,null,null,null,"Introduktionsjobb",{"$f":"IF(Antaganden!D10=\"Anställning\",(-1)*(IF(B20=\"Ja\",IF((B6*B15)>20000,'Anställning med ersättning'!L3,'Anställning med ersättning'!K3*Modell!AC16))),\"\")","v":""},null,"Arbetsgivares lönekostnader från verksamt.se",null,null,null,null,"Arbetsgivares lönekostnader från verksamt.se",null,null,"Arbetsgivares lönekostnader från verksamt.se",null,null,null,"Månadslön + Arbetsgivaravgift:",{"$f":"(AC11+AC12)/12+(SUM(AC13:AC14)/12)","v":0},null,null,"A-kassa",{"$f":"IFERROR(IF($B$12=\"Ja\",IF(AN7*(1/B15)*$AN$45<$AN$48,AN7*(1/B15)*$AN$45,$AN$48),0),0)","v":0},null,"A-kassa",{"$f":"IFERROR(IF($B$12=\"Ja\",IF(AQ7*(1/B15)*$AN$45<$AN$48,(1-B15)*AQ7*(1/B15)*$AN$45,(1-B15)*$AN$48),0),0)","v":0}]
["Nyanländ (Ja/Nej)",{"$f":"IF(Antaganden!D42=\"Ja\",\"Ja\",\"Nej\")","v":"Nej"},null,"b. Lagstadgade arbetsgivaravgifter (ink. försäkringar)",{"$f":"SUM(F11,G11,K11)","v":0},{"$f":"-1*SUM(AC13,AC14)/12","v":0},{"$f":"SUM(H11:J11)","v":0},{"$f":"SUM(AC13,AC14)/12","v":0},0,0,0,null,null,"Bonus per månad & person",{"$f":"IFERROR((-1)*O10/(B16),0)","v":0},null,"Kostnad",{"$f":"SUM(R7:R10)","v":-5714.4026666666668},null,"Yrkesintroduktion",{"$f":"IF(Antaganden!D10=\"Anställning\",IF(((IF(B21=\"Ja\",IF(B6*B15>20000,'Anställning med ersättning'!U3,(AC13/12)*'Anställning med ersättning'!T3)))+B15*'Anställning med ersättning'!W3)=2415,0,-1*((IF(B21=\"Ja\",IF(B6*B15>20000,'Anställning med ersättning'!U3,(AC13/12)*'Anställning med ersättning'!T3)))+B15*'Anställning med ersättning'!W3)),\"\")","v":""},null,"Lön/år",{"$f":"X7*11","v":88000},null,null,null,"Lön/år",{"$f":"AC7*11","v":0},null,"Lön/år",{"$f":"AF7*11","v":330000},null,null,"Månadslön:",{"$f":"(SUM(AC11,AC12)/12)","v":0},null,null,"Aktivitetsstöd",{"$f":"IF($B$11=\"Nej\",(IF(AND($B$12=\"Nej\",$B$9=\"26-65\"),$AN$57,0)),0)","v":0},null,"Aktivitetsstöd",{"$f":"IF(($AQ$8-$AQ$13)>AN11,AN11,($AQ$8-$AQ$13))","v":0}]
["A-kassa (Ja, Nej)",{"$f":"IF(Antaganden!D44=\"Ja\",\"Ja\",\"Nej\")","v":"Nej"},null,"c. Övriga skatter och avgifter",{"$f":"SUM(F12,G12,K12)","v":0},{"$f":"-1*SUM(AJ18,AJ26)","v":0},{"$f":"SUM(H12:J12)","v":0},{"$f":"SUM(AJ18,AJ26)","v":0},0,0,null,null,null,null,null,null,null,null,null,"Övriga stöd",null,null,"Semesterlön/år",{"$f":"(X7*11)*0.12","v":10560},null,null,null,"Semesterlön/år",{"$f":"(AC7*11)*0.12","v":0},null,"Semesterlön/år",{"$f":"(AF7*11)*0.12","v":39600},null,null,"Grundavdrag:",{"$f":"-1*LOOKUP((AJ11*12),Skatter!B:B,Skatter!D:D)/12","v":0},null,null,"Utvecklingsersättning",{"$f":"IF($B$11=\"Nej\",(IF(AND($B$12=\"Nej\",OR($B$9=\"20-23\",$B$9=\"24-25\")),$AN$59,0)),0)","v":3652},null,"Utvecklingsersättning",{"$f":"IF(($AQ$8-$AQ$13)>AN12,AN12,($AQ$8-$AQ$13))","v":3652}]
["Bostadsbidrag (Ja, Nej)",{"$f":"IF(Antaganden!D46=\"Ja\",\"Ja\",\"Nej\")","v":"Ja"},null,"B",null,null,null,null,null,null,null,null,null,"Kommun",{"$f":"IF(B3=\"Kommunal\",SUM(O8,O11),0)","v":-1666.6666666666667},null,null,null,null,null,null,null,"Arbetsgivaravgifter/år",{"$f":"X27*SUM(X11:X12)","v":0},null,null,null,"Arbetsgivaravgifter/år",{"$f":"IF(B9=\"20-23\",AC27,AC26)","v":0},null,"Arbetsgivaravgifter/år",{"$f":"AC28*SUM(AF11:AF12)","v":116128.31999999999},null,null,"Beskattningsbar lön:",{"$f":"IFERROR(SUM(AJ11:AJ12),0)","v":0},null,null,"Bostadsbidrag",{"$f":"IF($B$13=\"Nej\",0,$AN$61)","v":857},null,"Bostadsbidrag",{"$f":"IF($AQ$8>AN13,AN13,$AQ$8)","v":857}]
["Bruttolön per månad (heltid)",null,null,"Minskade utbetalningar av transfereringar",{"$f":"SUM(F14:G14)","v":0},{"$f":"(-1*(AN17-AQ17))","v":0},{"$f":"SUM(H14:J14)","v":0},{"$f":"SUM((AN10-AQ10),(AN11-AQ11),(AN12-AQ12),(AN13-AQ13),(AN9-AQ9),0)","v":0},null,{"$f":"AN14-AQ14","v":0},0,null,null,"Stat",{"$f":"IF(B3=\"Statlig\",SUM(O8,O11),0)","v":0},null,null,null,null,"Lärling",null,null,"Totalt Försäkringar enligt kollektivavtal / år",0,null,null,null,"Totalt Försäkringar enligt kollektivavtal / år",0,null,"Totalt Försäkringar enligt kollektivavtal / år",0,null,null,null,null,null,null,"Försörjningsstöd",{"$f":"IF(AN13+AN9+AN12+AN15-AN30>AN8,0,AN8-(AN13+AN9+AN12+AN15-AN30))","v":5891},null,"Försörjningsstöd",{"$f":"IF(AQ13+AQ9+AQ12+AQ15-AQ30>AQ8,0,AQ8-(AQ13+AQ9+AQ12+AQ15-AQ30))","v":5891}]
["Andel av heltid",{"$f":"Antaganden!D16","v":1},null,"C",null,null,null,null,null,null,null,null,null,"Region",{"$f":"IF(B3=\"Regional\",SUM(O8,O11),0)","v":0},null,null,null,null,"Lärlingsersättning",{"$f":"IF(Antaganden!D10=\"Lärling\",-(Modell!U28),\"\")","v":""},null,"Totalt lön och skatt/år",{"$f":"SUM(X11:X14)","v":98560},null,null,null,"Totalt lön och skatt/år",{"$f":"SUM(AC11:AC14)","v":0},null,"Totalt lön och skatt/år",{"$f":"SUM(AF11:AF14)","v":485728.32},null,null,"Skatter",null,null,null,"Beskattningsbara transfereringar",{"$f":"SUM(AN10,AN11)","v":0},null,"Beskattningsbara transfereringar",{"$f":"SUM(AQ10,AQ11)","v":0}]
["Antal månader",{"$f":"Antaganden!D12","v":6},null,"1. Ökat välbefinnande för deltagare",null,null,null,null,null,null,null,null,null,null,null,null,null,null,null,null,null,null,"Genomsnittlig kostnad/månad",{"$f":"X15/12","v":8213.3333333333339},null,null,null,"Genomsnittlig kostnad/månad",{"$f":"AC15/12","v":0},null,"Genomsnittlig kostnad/månad",{"$f":"AF15/12","v":40477.360000000001},null,null,"Kommunalskatt",{"$f":"AJ13*AJ31","v":0},null,null,"Skattefria transfereringar",{"$f":"SUM(AN9,AN12,AN13,AN14)","v":10400},null,"Skattefria transfereringar",{"$f":"SUM(AQ9,AQ12,AQ13,AQ14)","v":10400}]
["Antal personer",{"$f":"Antaganden!D14","v":1},null,"2. Ökat välbefinnande för övriga",null,null,null,null,null,null,null,null,null,null,null,null,null,null,null,"Praktik",null,null,null,null,null,null,null,null,null,null,null,null,null,null,"Regionsskattesats:",{"$f":"AJ13*AJ32","v":0},null,null,"Totala transfereringar",{"$f":"SUM(AN15,AN16)","v":10400},null,"Totala transfereringar",{"$f":"SUM(AQ15,AQ16)","v":10400}]
["Anställningsstöd",null,null,"D",null,null,null,null,null,null,null,null,null,null,null,null,null,null,null,null,null,null,"Till Faktorpris",null,null,null,null,"Till Faktorpris",null,null,"Till Faktorpris",null,null,null,"Public service-avgift",{"$f":"(IF(AJ13*12>AK33,AL33,AJ13*12*AJ33))/12","v":0}]
["Nystartsjobb",{"$f":"IF(Antaganden!D20=\"Nystartsjobb\",\"Ja\",\"Nej\")","v":"Nej"},null,"Kostnad för sysselsättningskrav",{"$f":"SUM(F19,G19,K19)","v":-7381.0693333333338},0,{"$f":"SUM(H19:J19)","v":-1666.6666666666667},{"$f":"O14","v":0},{"$f":"O15","v":0},{"$f":"O13","v":-1666.6666666666667},{"$f":"R11","v":-5714.4026666666668},null,null,null,null,null,null,null,null,"Praktikersättning",{"$f":"IF(Antaganden!D10=\"Praktik\",-(Modell!U31),\"\")","v":-3300},null,"Totala uppskattade kostnader inkl försäkringar/år",{"$f":"X15","v":98560},null,null,null,"Totala uppskattade kostnader inkl försäkringar/år",{"$f":"AC15","v":0},null,"Totala uppskattade kostnader inkl försäkringar/år",{"$f":"AF15","v":485728.32},null,null,"Statlig skatt:",{"$f":"(IF(AJ11*12>AK34,((AJ11*B15)*12-AK34)*AJ34,0))/12","v":0},null,null,"Skatter",null,null,"Skatter"]
["Introduktionsjobb",{"$f":"IF(Antaganden!D20=\"Introduktionsjobb\",\"Ja\",\"Nej\")","v":"Nej"},null,"Arbetsmarknadsstöd",{"$f":"SUM(F20,G20,K20)","v":0},0,{"$f":"SUM(H20:J20)","v":-3300},{"$f":"SUM(U21)","v":-3300},null,null,{"$f":"(U21*(-1))+((-1)*SUM(O11))","v":3300},null,null,null,null,null,null,null,null,null,null,null,"Totala uppskattade kostnader inkl försäkringar/månad",{"$f":"X19/12","v":8213.3333333333339},null,null,null,"Totala uppskattade kostnader inkl försäkringar/månad",{"$f":"AC19/12","v":0},null,"Totala uppskattade kostnader inkl försäkringar/månad",{"$f":"AF19/12","v":40477.360000000001},null,null,"Värnskatt:",null,null,null,"Kommunalskatt",{"$f":"AN15*$AJ$31","v":0},null,"Kommunalskatt",{"$f":"AQ15*$AJ$31","v":0}]
["Yrkesintroduktion",{"$f":"IF(Antaganden!D20=\"Yrkesintroduktion\",\"Ja\",\"Nej\")","v":"Nej"},null,"E",null,null,null,null,null,null,null,null,null,null,null,null,null,null,null,"Arbetsgivarstöd",{"$f":"SUM(U7:U20)","v":-3300},null,null,null,null,null,null,null,null,null,null,null,null,null,"Jobbskatteavdrag",{"$f":"IFERROR((-1*(INDEX(Skatter!G4:G143,MATCH(MAX(IF(Skatter!F4:F144<(AJ11*12),Skatter!F4:F144)),Skatter!F4:F143,0)))*AJ11),0)","v":0},null,null,"Regionsskattesats:",{"$f":"AN15*$AJ$32","v":0},null,"Regionsskattesats:",{"$f":"AQ15*$AJ$32","v":0}]
["Övriga stöd",null,null,"Minskad inbetalning av skatt  på skattepliktiga transfereringar",{"$f":"SUM(F22:G22)","v":0},{"$f":"-1*G22","v":0},{"$f":"SUM(H22:J22)","v":0},{"$f":"-1*SUM((AN22-AQ22),(AN28-AQ28),(AN25-AQ25))","v":0},{"$f":"-1*SUM(AN21-AQ21)","v":0},{"$f":"-1*SUM(AN20-AQ20)","v":0},null,null,null,null,null,null,null,null,null,null,null,null,"Till Marknadspris (antagen moms=0,18)",null,null,null,null,"Till Marknadspris (antagen moms=0,18)",null,null,null,null,null,null,"Total",{"$f":"SUM(AJ16:AJ21)","v":0},null,null,"Public service-avgift",{"$f":"(IF(AN15*12>$AK$33,$AL$33,AN15*12*$AJ$33))/12","v":0},null,"Public service-avgift",{"$f":"(IF(AQ15*12>$AK$33,$AL$33,AQ15*12*$AJ$33))/12","v":0}]
["Praktik/lärling",null,null,"Summa",{"$f":"SUM(F23,G23,K23)","v":2310.6639999999998},{"$f":"SUM(F8:F22)","v":0},{"$f":"SUM(H23:J23)","v":-3488.2666666666673},{"$f":"SUM(H8:H22)","v":-1821.6000000000004},{"$f":"SUM(I8:I22)","v":0},{"$f":"SUM(J8:J22)","v":-1666.6666666666667},{"$f":"SUM(K8:K22)","v":5798.9306666666671},null,null,null,null,null,null,null,null,null,null,null,"Totala uppskattade kostnader inkl försäkringar/år",{"$f":"X19*1.18","v":116300.79999999999},null,null,null,"Totala uppskattade kostnader inkl försäkringar/år",{"$f":"AC19*1.18","v":0},null,null,null,null,null,null,null,null,null,"Statlig skatt:",{"$f":"(IF(AN15*12>$AK$34,(A($B$6*$B$15)*12-$AK$34)*$AJ$34,0))/12","v":0},null,"Statlig skatt:",{"$f":"(IF(AQ15*12>$AK$34,(A($B$6*$B$15)*12-$AK$34)*$AJ$34,0))/12","v":0}]
["Bruttolön per månad, handledare",{"$f":"Antaganden!D24","v":30000},null,null,null,null,null,null,null,null,null,null,null,null,null,null,null,null,null,null,null,null,"Totala uppskattade kostnader inkl försäkringar/månad",{"$f":"X20*1.18","v":9691.7333333333336},null,null,null,"Totala uppskattade kostnader inkl försäkringar/månad",{"$f":"AC20*1.18","v":0},null,null,null,null,null,"Avgifter",null,null,null,"Värnskatt:",null,null,"Värnskatt:"]
["Produktionstillskott (andel av lön)",{"$f":"Antaganden!D22","v":0},null,null,null,null,null,null,null,null,null,null,null,null,null,null,null,null,null,null,null,null,null,null,null,null,null,null,null,null,null,null,null,null,"Begravningsavgift:",{"$f":"AJ13*AJ37","v":0},null,null,"Jobbskatteavdrag",0,null,"Jobbskatteavdrag",0]
["Uppskattad kostnad för handledning och administration (andel av heltidstjänst)",{"$f":"Antaganden!D26","v":0.1},null,null,null,null,null,null,null,null,null,null,null,null,null,null,null,null,null,null,null,null,null,null,null,null,null,"Arbetsgivaravgift",{"$f":"AC28*SUM(AC11:AC12)","v":0},null,null,null,null,null,"Total avgift",{"$f":"SUM(AJ25)","v":0},null,null,"Total",{"$f":"SUM(AN20:AN25)","v":0},null,"Total",{"$f":"SUM(AQ20:AQ25)","v":0}]
["Produktionstillskott (pengar)",{"$f":"Antaganden!D32","v":8000},null,null,null,null,null,null,null,null,null,null,null,null,null,null,null,null,null,"Stadsbidrag för lärling (per plats och år)",40000,null,null,null,null,null,null,"Arbetsgivaravgift unga",{"$f":"IF((SUM(AC11:AC12)>308000),308000,SUM(AC11:AC12))*AC29+(IF(SUM(AC11:AC12)>308000,(SUM(AC11:AC12)-308000),0)*AC28)","v":0},null,null,null,null,null,null,null,null,null,"Avgifter",null,null,"Avgifter"]
["Övrigt",null,null,null,null,null,null,null,null,null,null,{"$f":"U10","v":""},null,null,null,null,null,null,null,"Lärlingsbidrag per månad (10 månader termin)",{"$f":"U27/10","v":4000},null,null,null,null,null,null,"Arbetsgivaravgift 2021",0.31419999999999998,null,null,null,null,null,"Nettolön=Bruttolön-Skatter-Avgifter",{"$f":"AJ11-AJ22-AJ26","v":0},null,null,"Begravningsavgift:",{"$f":"AN15*$AJ$37","v":0},null,"Begravningsavgift:",{"$f":"AQ15*$AJ$37","v":0}]
["Administrationskostnader (upphandling m.m.) arbetsgivare",{"$f":"Antaganden!D28","v":10000},null,null,null,null,null,null,null,null,null,null,null,null,null,null,null,null,null,null,null,null,null,null,null,null,null,"Arbetsgivaravgift unga 2021",0.1973]
["Upphandlingskostnad",{"$f":"Antaganden!D30","v":10000},null,null,null,null,null,null,null,null,null,null,null,null,null,null,null,null,null,"Ersättning för arbetsträning (praktik) per dag",150,null,null,null,null,null,null,"Källa: Skatteverket",null,null,null,null,null,null,null,"Skattesats",null,null,"Totala skatter & avgifter",{"$f":"SUM(AN26,AN28)","v":0},null,"Totala skatter & avgifter",{"$f":"SUM(AQ26,AQ28)","v":0}]
["Bonus",{"$f":"Antaganden!D34","v":0},null,null,null,null,null,null,null,null,null,null,null,null,null,null,null,null,null,"Praktikersättning per månad",{"$f":"U30*22","v":3300},null,null,null,null,null,null,null,null,null,null,null,null,null,"Kommunalskatt*",0.20710000000000001,"Skiktgräns","Max"]
[null,null,null,null,null,null,null,null,null,null,null,null,null,null,null,null,null,null,null,null,null,null,null,null,null,null,null,null,null,null,null,null,null,null,"Regionsskattesats*",0.11559999999999999]
[null,null,null,null,null,null,null,null,null,null,null,null,null,null,null,null,null,null,null,null,null,null,null,null,null,null,null,null,null,null,null,null,null,null,"Public service-avgift",0.01,132990,1329]
[null,null,null,null,null,null,null,null,null,null,null,null,null,null,null,null,null,null,null,null,null,null,null,null,null,null,"SEK",null,null,null,null,null,null,null,"Statlig skatt",0.2,523200,null,"Totala transfereringar efter skatt",{"$f":"SUM(AN16,AN15-AN30)","v":10400},null,"Totala transfereringar efter skatt",{"$f":"SUM(AQ16,AQ15-AQ30)","v":10400}]
[null,null,"äldre minsta",{"$f":"IF(AND(B9=\"26-65\",B10=\"12-23 mån\",B11=\"Nej\"),IF(((AC13/12)*'Anställning med ersättning'!G12)<'Anställning med ersättning'!F12,((AC13/12)*'Anställning med ersättning'!G12),'Anställning med ersättning'!F12),IF(AND(B9=\"26-65\",B10=\"24-35 mån\",B11=\"Nej\"),IF(((AC13/12)*'Anställning med ersättning'!G13)<'Anställning med ersättning'!F13,((AC13/12)*'Anställning med ersättning'!G13),'Anställning med ersättning'!F13),IF(AND(B9=\"26-65\",B10=\"36- mån\",B11=\"Nej\"),IF(((AC13/12)*'Anställning med ersättning'!G14)<'Anställning med ersättning'!F14,((AC13/12)*'Anställning med ersättning'!G14),'Anställning med ersättning'!F14),IF(AND(B9=\"20-23\",OR(B10=\"6-11 mån\",B10=\"12-23 mån\"),B11=\"Nej\"),IF(((AC13/12)*'Anställning med ersättning'!G9)<'Anställning med ersättning'!F9,(AC13/12)*'Anställning med ersättning'!G9,'Anställning med ersättning'!F9),IF(AND(B9=\"20-23\",B10=\"24-35 mån\",B11=\"Nej\"),IF(((AC13/12)*'Anställning med ersättning'!G10)<'Anställning med ersättning'!F10,((AC13/12)*'Anställning med ersättning'!G10),'Anställning med ersättning'!F10),IF(AND(B9=\"20-23\",B10=\"36- mån\",B11=\"Nej\"),IF(((AC13/12)*'Anställning med ersättning'!G11)<'Anställning med ersättning'!F11,((AC13/12)*'Anställning med ersättning'!G11),'Anställning med ersättning'!F11),0))))))","v":0},"yngre minsta",{"$f":"IF(AND(B9=\"20-23\",OR(B10=\"6-11 mån\",B10=\"12-23 mån\"),B11=\"Nej\"),IF(((AC13/12)*'Anställning med ersättning'!G9)<'Anställning med ersättning'!F9,(AC13/12)*'Anställning med ersättning'!G9,'Anställning med ersättning'!F9),IF(AND(B9=\"20-23\",B10=\"24-35 mån\",B11=\"Nej\"),IF(((AC13/12)*'Anställning med ersättning'!G10)<'Anställning med ersättning'!F10,((AC13/12)*'Anställning med ersättning'!G10),'Anställning med ersättning'!F10),IF(AND(B9=\"20-23\",B10=\"36- mån\",B11=\"Nej\"),IF(((AC13/12)*'Anställning med ersättning'!G11)<'Anställning med ersättning'!F11,((AC13/12)*'Anställning med ersättning'!G11),'Anställning med ersättning'!F11),0)))","v":0},null,null,null,null,null,null,null,null,null,null,null,null,null,null,null,null,null,null,null,null,"ss","Lön","Semesterlön","Arbetsgivaravgift",null,null,null,null,"Värnskatt"]
[null,null,"äldre medel",{"$f":"IF(AND(B9=\"26-65\",B10=\"24-35 mån\",B11=\"Nej\"),IF(((AC13/12)*'Anställning med ersättning'!G13)<'Anställning med ersättning'!F13,((AC13/12)*'Anställning med ersättning'!G13),'Anställning med ersättning'!F13),IF(AND(B9=\"26-65\",B10=\"36- mån\",B11=\"Nej\"),IF(((AC13/12)*'Anställning med ersättning'!G14)<'Anställning med ersättning'!F14,((AC13/12)*'Anställning med ersättning'!G14),'Anställning med ersättning'!F14),IF(AND(B9=\"20-23\",OR(B10=\"6-11 mån\",B10=\"12-23 mån\"),B11=\"Nej\"),IF(((AC13/12)*'Anställning med ersättning'!G9)<'Anställning med ersättning'!F9,(AC13/12)*'Anställning med ersättning'!G9,'Anställning med ersättning'!F9),IF(AND(B9=\"20-23\",B10=\"24-35 mån\",B11=\"Nej\"),IF(((AC13/12)*'Anställning med ersättning'!G10)<'Anställning med ersättning'!F10,((AC13/12)*'Anställning med ersättning'!G10),'Anställning med ersättning'!F10),IF(AND(B9=\"20-23\",B10=\"36- mån\",B11=\"Nej\"),IF(((AC13/12)*'Anställning med ersättning'!G11)<'Anställning med ersättning'!F11,((AC13/12)*'Anställning med ersättning'!G11),'Anställning med ersättning'!F11),0)))))","v":0},"äldre medel",{"$f":"IF(AND(B9=\"20-23\",B10=\"24-35 mån\",B11=\"Nej\"),IF(((AC13/12)*'Anställning med ersättning'!G10)<'Anställning med ersättning'!F10,((AC13/12)*'Anställning med ersättning'!G10),'Anställning med ersättning'!F10),IF(AND(B9=\"20-23\",B10=\"36- mån\",B11=\"Nej\"),IF(((AC13/12)*'Anställning med ersättning'!G11)<'Anställning med ersättning'!F11,((AC13/12)*'Anställning med ersättning'!G11),'Anställning med ersättning'!F11),0))","v":0},null,null,null,null,null,null,null,null,null,null,null,null,null,null,null,null,null,null,null,null,null,{"$f":"AC11/12","v":0},{"$f":"AC12/12","v":0},{"$f":"AC13/12","v":0},null,null,null,null,"Kyrkoavgift"]
[null,null,"äldre max",{"$f":"IF(AND(B9=\"26-65\",B10=\"36- mån\",B11=\"Nej\"),IF(((AC13/12)*'Anställning med ersättning'!G14)<'Anställning med ersättning'!F14,((AC13/12)*'Anställning med ersättning'!G14),'Anställning med ersättning'!F14),IF(AND(B9=\"20-23\",OR(B10=\"6-11 mån\",B10=\"12-23 mån\"),B11=\"Nej\"),IF(((AC13/12)*'Anställning med ersättning'!G9)<'Anställning med ersättning'!F9,(AC13/12)*'Anställning med ersättning'!G9,'Anställning med ersättning'!F9),IF(AND(B9=\"20-23\",B10=\"24-35 mån\",B11=\"Nej\"),IF(((AC13/12)*'Anställning med ersättning'!G10)<'Anställning med ersättning'!F10,((AC13/12)*'Anställning med ersättning'!G10),'Anställning med ersättning'!F10),IF(AND(B9=\"20-23\",B10=\"36- mån\",B11=\"Nej\"),IF(((AC13/12)*'Anställning med ersättning'!G11)<'Anställning med ersättning'!F11,((AC13/12)*'Anställning med ersättning'!G11),'Anställning med ersättning'!F11),0))))","v":0},"äldre max",{"$f":"IF(AND(B9=\"20-23\",B10=\"36- mån\",B11=\"Nej\"),IF(((AC13/12)*'Anställning med ersättning'!G11)<'Anställning med ersättning'!F11,((AC13/12)*'Anställning med ersättning'!G11),'Anställning med ersättning'!F11),0)","v":0},null,null,null,null,null,null,null,null,null,null,null,null,null,null,null,null,null,null,null,null,null,500000,500000,500000,null,null,null,null,"Begravningsavgift*",2.5300000000000001E-3]
[null,null,null,{"$f":"IF(AND(B5=\"Anställning\",B19=\"Ja\"),IF(B11=\"Ja\",IF(((AC13/12)*'Anställning med ersättning'!G5)<'Anställning med ersättning'!F5,((AC13/12)*'Anställning med ersättning'!G5),'Anställning med ersättning'!F5),IF(AND(B9=\"26-65\",B10=\"12-23 mån\",B11=\"Nej\"),IF(((AC13/12)*'Anställning med ersättning'!G12)<'Anställning med ersättning'!F12,((AC13/12)*'Anställning med ersättning'!G12),'Anställning med ersättning'!F12),IF(AND(B9=\"26-65\",B10=\"24-35 mån\",B11=\"Nej\"),IF(((AC13/12)*'Anställning med ersättning'!G13)<'Anställning med ersättning'!F13,((AC13/12)*'Anställning med ersättning'!G13),'Anställning med ersättning'!F13),IF(AND(B9=\"26-65\",B10=\"36- mån\",B11=\"Nej\"),IF(((AC13/12)*'Anställning med ersättning'!G14)<'Anställning med ersättning'!F14,((AC13/12)*'Anställning med ersättning'!G14),'Anställning med ersättning'!F14),IF(AND(B9=\"20-23\",OR(B10=\"6-11 mån\",B10=\"12-23 mån\"),B11=\"Nej\"),IF(((AC13/12)*'Anställning med ersättning'!G9)<'Anställning med ersättning'!F9,(AC13/12)*'Anställning med ersättning'!G9,'Anställning med ersättning'!F9),IF(AND(B9=\"20-23\",B10=\"24-35 mån\",B11=\"Nej\"),IF(((AC13/12)*'Anställning med ersättning'!G10)<'Anställning med ersättning'!F10,((AC13/12)*'Anställning med ersättning'!G10),'Anställning med ersättning'!F10),IF(AND(B9=\"20-23\",B10=\"36- mån\",B11=\"Nej\"),IF(((AC13/12)*'Anställning med ersättning'!G11)<'Anställning med ersättning'!F11,((AC13/12)*'Anställning med ersättning'!G11),'Anställning med ersättning'!F11),0))))))),0)","v":0},{"$f":"IF(B11=\"Ja\",IF(((AC13/12)*'Anställning med ersättning'!G5)<'Anställning med ersättning'!F5,((AC13/12)*'Anställning med ersättning'!G5),'Anställning med ersättning'!F5),IF(AND(B9=\"26-65\",B10=\"12-23 mån\",B11=\"Nej\"),IF(((AC13/12)*'Anställning med ersättning'!G12)<'Anställning med ersättning'!F12,((AC13/12)*'Anställning med ersättning'!G12),'Anställning med ersättning'!F12),IF(AND(B9=\"26-65\",B10=\"24-35 mån\",B11=\"Nej\"),IF(((AC13/12)*'Anställning med ersättning'!G13)<'Anställning med ersättning'!F13,((AC13/12)*'Anställning med ersättning'!G13),'Anställning med ersättning'!F13),IF(AND(B9=\"26-65\",B10=\"36- mån\",B11=\"Nej\"),IF(((AC13/12)*'Anställning med ersättning'!G14)<'Anställning med ersättning'!F14,((AC13/12)*'Anställning med ersättning'!G14),'Anställning med ersättning'!F14),IF(AND(B9=\"20-23\",OR(B10=\"6-11 mån\",B10=\"12-23 mån\"),B11=\"Nej\"),IF(((AC13/12)*'Anställning med ersättning'!G9)<'Anställning med ersättning'!F9,(AC13/12)*'Anställning med ersättning'!G9,'Anställning med ersättning'!F9),IF(AND(B9=\"20-23\",B10=\"24-35 mån\",B11=\"Nej\"),IF(((AC13/12)*'Anställning med ersättning'!G10)<'Anställning med ersättning'!F10,((AC13/12)*'Anställning med ersättning'!G10),'Anställning med ersättning'!F10),IF(AND(B9=\"20-23\",B10=\"36- mån\",B11=\"Nej\"),IF(((AC13/12)*'Anställning med ersättning'!G11)<'Anställning med ersättning'!F11,((AC13/12)*'Anställning med ersättning'!G11),'Anställning med ersättning'!F11),0)))))))","v":0},null,null,null,null,null,null,null,null,null,null,null,null,null,null,null,null,null,null,null,null,null,null,null,null,null,null,null,null,null,"* Källa: SCB\nMedelskattesatsen är ett viktat medelvärde för samtliga kommuner där skatteunderlaget har använts som vägningstal."]
[null,null,null,null,null,null,null,null,null,null,null,null,null,null,null,null,null,null,null,null,null,null,null,null,null,null,null,null,null,null,null,null,null,null,"Prisbasbelopp 2019",46500]
[null,null,null,null,null,null,null,null,null,null,null,null,null,null,null,null,null,null,null,null,null,null,null,null,null,null,null,{"$f":"AB15","v":"Totalt lön och skatt/år"},{"$f":"AC15","v":0},null,null,null,null,null,"Prisbasbelopp 2022",47600]
[null,null,null,"20-23",null,null,null,null,null,null,null,null,null,null,null,null,null,"Lönekostnad",{"$f":"AC16*(-1)","v":0},null,null,null,null,null,null,null,null,null,null,null,null,null,null,null,"Lön","SEK"]
[null,null,null,"24-25",null,null,null,null,null,null,null,null,null,null,null,null,null,"Arbetsmarknadsstöd",{"$f":"(-1)*U21","v":3300},null,null,null,null,null,null,null,null,null,null,null,null,null,null,null,{"$f":"AI7","v":"Antagen Bruttolön/månad"},{"$f":"AJ7","v":0},null,null,"Nyanländ",6468]
[null,null,null,"26-65",null,null,null,null,null,null,null,null,null,null,null,null,null,"Bonus",{"$f":"O11*(-1)","v":0},null,null,null,null,null,null,null,null,null,null,null,null,null,null,null,{"$f":"AI10","v":"Månadslön + Arbetsgivaravgift:"},0,null,null,"A-kassa (dag 1-100)",0.8]
[null,null,null,null,null,null,null,null,null,null,null,null,null,null,null,null,null,"Produktionstillskott",{"$f":"IF(B5=\"Anställning\",AC20*(B25),IF(B5=\"Lärling\",AC20*(B25),IF(B5=\"Praktik\",X20)))","v":8213.3333333333339},null,null,null,null,null,null,null,null,null,null,null,null,null,null,null,"Månadslön:",0,null,null,"A-kassa (dag 101-",0.7]
[null,null,null,null,null,null,null,null,null,null,null,null,null,null,null,null,null,"Administrationskostnad",{"$f":"R9","v":-1666.6666666666667},null,null,null,null,null,null,null,null,null,null,null,null,null,null,null,"Grundavdrag:",0,null,null,"A-kassa",{"$f":"IFERROR((AN43*AN51+AN44*AN52)/SUM(AN51:AN52),0)","v":0.7}," https://www.forsakringskassan.se/statistik/barn-familj/bostadsbidrag"]
[null,null,null,null,null,null,null,null,null,null,null,null,null,null,null,null,null,"Handledning",{"$f":"R8","v":-4047.7360000000003},null,null,null,null,null,null,null,null,null,null,null,null,null,null,null,"Beskattningsbar lön:",0,null,null,"Maxgräns (dag 1-100)",{"$f":"AN49*AP46","v":26400},null,1200]
[null,null,null,null,null,null,null,null,null,null,null,null,null,null,null,null,null,"Totalt",{"$f":"SUM(S41:S46)","v":5798.9306666666671},null,null,null,null,null,null,null,null,null,null,null,null,null,null,null,null,null,null,null,"Maxgräns (dag 101-)",{"$f":"AN49*AP47","v":22000},null,1000]
[null,null,null,null,null,null,null,null,null,null,null,null,null,null,null,null,null,null,null,null,null,null,null,null,null,null,null,null,null,null,null,null,null,null,null,null,null,null,"Maxgräns (beräknad)",{"$f":"IFERROR((AN46*AN51+AN47*AN52)/SUM(AN51:AN52),0)","v":22000}]
[null,null,null,null,null,null,null,null,null,null,null,null,null,null,null,null,null,null,null,null,null,null,null,null,null,null,null,null,null,null,null,null,null,null,null,null,null,null,"Antal arbetsdagar per månad ",22]
[null,null,null,null,null,null,null,null,null,null,null,null,null,null,null,null,null,null,null,null,null,null,null,null,null,null,null,null,null,null,null,null,null,null,"Skatter"]
[null,null,null,null,null,null,null,null,null,null,null,null,null,null,null,null,null,null,null,null,null,null,null,null,null,null,null,null,null,null,null,null,null,null,null,"SEK",null,null,"Antal månader full A-kassa",{"$f":"IF(IF(B16<=5-AN53,B16,5-AN53)>0,IF(B16<=5-AN53,B16,5-AN53),0)","v":0}]
[null,null,null,null,null,null,null,null,null,null,null,null,null,null,null,null,null,null,null,null,null,null,null,null,null,null,null,null,null,null,null,null,null,null,{"$f":"AI42","v":"Antagen Bruttolön/månad"},{"$f":"AJ42","v":0},null,null,"Antal månader begränsad A-kassa",{"$f":"IF(IF(B16<=14-AN53,B16,14-AN53)>0,IF(B16<=14-AN53,B16,14-AN53),0)","v":5}]
[null,null,null,null,null,null,null,null,null,null,null,null,null,null,null,null,null,null,null,null,null,null,null,null,null,null,null,null,null,null,null,null,null,null,{"$f":"AI16","v":"Kommunalskatt"},{"$f":"AJ16*-1","v":0},null,null,"Tid innan sysselssätningskrav",{"$f":"INDEX(AN64:AN67,MATCH(B10,AM64:AM67,0))","v":9}]
[null,null,null,null,null,null,null,null,null,null,null,null,null,null,null,null,null,null,null,null,null,null,null,null,null,null,null,null,null,null,null,null,null,null,{"$f":"AI17","v":"Regionsskattesats:"},{"$f":"AJ17*-1","v":0},null,null,"Max antal månader med A-kassa",{"$f":"ROUND(300/AN49,0)","v":14}]
[null,null,null,null,null,null,null,null,null,null,null,null,null,null,null,null,null,null,null,null,null,null,null,null,null,null,null,null,null,null,null,null,null,null,{"$f":"AI18","v":"Public service-avgift"},{"$f":"AJ18*-1","v":0},null,null,"Grundersättning (per månad)",{"$f":"AN49*AP55","v":11220},null,510]
[null,null,null,null,null,null,null,null,null,null,null,null,null,null,null,null,null,null,null,null,null,null,null,null,null,null,null,null,null,null,null,null,null,null,{"$f":"AI19","v":"Statlig skatt:"},{"$f":"AJ19*-1","v":0}]
[null,null,null,null,null,null,null,null,null,null,null,null,null,null,null,null,null,null,null,null,null,null,null,null,null,null,null,null,null,null,null,null,null,null,{"$f":"AI20","v":"Värnskatt:"},{"$f":"AJ20*-1","v":0},null,null,"Aktivitetsstöd (per månad)",{"$f":"223*AN49","v":4906}]
[null,null,null,null,null,null,null,null,null,null,null,null,null,null,null,null,null,null,null,null,null,null,null,null,null,{"$f":"_xlfn.CONCAT(AA58,AB60,AF60)","v":"Kommunalskatt"},"Kommunalskatt",null,null,null,null,null,null,null,{"$f":"AI21","v":"Jobbskatteavdrag"},{"$f":"AJ21*-1","v":0}]
[null,null,null,null,null,null,null,null,null,null,null,null,null,null,null,null,null,null,null,null,null,null,null,null,null,null,"Regionsskattesats",null,"Kommun","Region","Stat",null,null,null,null,null,null,null,"Utvecklingsersättning (per månad)",{"$f":"166*AN49","v":3652}]
[null,null,null,null,null,null,null,null,null,null,null,null,null,null,null,null,null,null,null,null,null,null,null,null,null,null,"Avgifter",{"$f":"IF(SUM(AC60:AE60)<>0,AA58,\"\")","v":""},{"$f":"SUM(AJ53,(AN86-AQ86))*(-1)","v":0}]
[null,null,null,null,null,null,null,null,null,null,null,null,null,null,null,null,null,null,null,null,null,null,null,null,null,null,"Indirekt skatt","",null,{"$f":"SUM(AJ54,(AN87-AQ87))*(-1)","v":0},null,null,null,null,{"$f":"AI22","v":"Total"},{"$f":"AJ22","v":0},null,null,"Bostadsbidrag (genomsnitt per månad)",857]
[null,null,null,null,null,null,null,null,null,null,null,null,null,null,null,null,null,null,null,null,null,null,null,null,null,null,"Arbetsgivaravgift","",null,null,{"$f":"SUM(AJ55,(AN88-AQ88))*(-1)+AJ25-(AN95-AQ95)","v":0},null,null,null,"Nettolön",{"$f":"AJ28","v":0}]
[null,null,null,null,null,null,null,null,null,null,null,null,null,null,null,null,null,null,null,null,null,null,null,null,null,null,"Statlig skatt","Indirekt skatt",null,null,{"$f":"IF(B5=\"Praktik\",(X24-X20),(AC24-AC20))","v":1478.3999999999996},null,null,null,null,null,null,null,"Tid i arbetslöshet"]
[null,null,null,null,null,null,null,null,null,null,null,null,null,null,null,null,null,null,null,null,null,null,null,null,null,null,"Jobbskatteavdrag","",null,null,{"$f":"SUM(AC13,AC14)/12","v":0},null,null,null,null,null,null,null,"<6 mån",3]
[null,null,null,null,null,null,null,null,null,null,null,null,null,null,null,null,null,null,null,null,null,null,null,null,null,null,"Etableringsersättning","",null,null,{"$f":"SUM(AJ56,AN89)*(-1)","v":0},null,null,null,null,null,null,null,"6-11 mån",9]
[null,null,null,null,null,null,null,null,null,null,null,null,null,null,null,null,null,null,null,null,null,null,null,null,null,null,"A-kassa","",null,null,{"$f":"SUM(AJ58,AN91)*(-1)","v":0},null,null,null,null,null,null,null,"12-23 mån",15]
[null,null,null,null,null,null,null,null,null,null,null,null,null,null,null,null,null,null,null,null,null,null,null,null,null,null,"Aktivitetsstöd","",null,null,{"$f":"AN71-AQ71","v":0},null,null,null,null,null,null,null,"24- mån",24]
[null,null,null,null,null,null,null,null,null,null,null,null,null,null,null,null,null,null,null,null,null,null,null,null,null,null,"Utvecklingsersättning","",null,null,{"$f":"(AN72-AQ72)","v":0}]
[null,null,null,null,null,null,null,null,null,null,null,null,null,null,null,null,null,null,null,null,null,null,null,null,null,null,"Bostadsbidrag","",null,null,{"$f":"AN73-AQ73","v":0}]
[null,null,null,null,null,null,null,null,null,null,null,null,null,null,null,null,null,null,null,null,null,null,null,null,null,null,"Försörjningsstöd","",null,null,{"$f":"AN74-AQ74","v":0},null,null,null,null,null,null,null,"Transfereringar innan","SEK",null,"Transfereringar efter","SEK"]
[null,null,null,null,null,null,null,null,null,null,null,null,null,null,null,null,null,null,null,null,null,null,null,null,null,null,"Arbetsmarknadsstöd","",null,null,{"$f":"AN75-AQ75","v":0},null,null,null,null,null,null,null,{"$f":"AM9","v":"Etableringsersättning"},0,null,{"$f":"AP9","v":"Etableringsersättning"},0]
[null,null,null,null,null,null,null,null,null,null,null,null,null,null,null,null,null,null,null,null,null,null,null,null,null,null,"Bonus","",{"$f":"AN76-AQ76","v":0},null,null,null,null,null,null,null,null,null,"A-kassa",0,null,{"$f":"AP10","v":"A-kassa"},0]
[null,null,null,null,null,null,null,null,null,null,null,null,null,null,null,null,null,null,null,null,null,null,null,null,null,null,"Upphandlingskostnad","Arbetsmarknadsstöd",null,null,{"$f":"SUM(U21)","v":-3300},null,null,null,null,null,null,null,"Aktivitetsstöd",0,null,{"$f":"AP11","v":"Aktivitetsstöd"},0]
[null,null,null,null,null,null,null,null,null,null,null,null,null,null,null,null,null,null,null,null,null,null,null,null,null,null,"Upphandlingskostnad","",{"$f":"IF(B3=\"Kommunal\",O11,0)","v":0},{"$f":"IF(B3=\"Regional\",O11,0)","v":0},{"$f":"IF(B3=\"Statlig\",O11,0)","v":0},null,null,null,null,null,null,null,"Utvecklingsersättning",3652,null,{"$f":"AP12","v":"Utvecklingsersättning"},3652]
[null,null,null,null,null,null,null,null,null,null,null,null,null,null,null,null,null,null,null,null,null,null,null,null,null,null,"Upphandlingskostnad","",null,null,{"$f":"IF(B3=\"Statlig\",(O14-O11),0)","v":0},null,null,null,null,null,null,null,"Bostadsbidrag",857,null,{"$f":"AP13","v":"Bostadsbidrag"},857]
[null,null,null,null,null,null,null,null,null,null,null,null,null,null,null,null,null,null,null,null,null,null,null,null,null,null,null,"",null,{"$f":"IF(B3=\"Regional\",(O15-O11),0)","v":0},null,null,null,null,null,null,null,null,"Försörjningsstöd",5891,null,{"$f":"AP14","v":"Försörjningsstöd"},5891]
[null,null,null,null,null,null,null,null,null,null,null,null,null,null,null,null,null,null,null,null,null,null,null,null,null,null,null,"Upphandlingskostnad",{"$f":"IF(B3=\"Kommunal\",(O13-O11),0)","v":-1666.6666666666667},null,null,null,null,null,null,null,null,null,"Beskattningsbara transfereringar",{"$f":"AN15","v":0},null,"Beskattningsbara transfereringar",{"$f":"AQ15","v":0}]
[null,null,null,null,null,null,null,null,null,null,null,null,null,null,null,null,null,null,null,null,null,null,null,null,null,null,null,0,{"$f":"SUM(AC60:AC77)","v":-1666.6666666666667},{"$f":"SUM(AD60:AD77)","v":0},{"$f":"SUM(AE60:AE77)","v":-1821.6000000000004},null,null,null,null,null,null,null,"Skattefria transfereringar",{"$f":"AN16","v":10400},null,"Skattefria transfereringar",{"$f":"AQ16","v":10400}]
[null,null,null,null,null,null,null,null,null,null,null,null,null,null,null,null,null,null,null,null,null,null,null,null,null,null,null,null,null,null,null,null,null,null,null,null,null,null,{"$f":"AM17","v":"Totala transfereringar"},{"$f":"AN17","v":10400},null,{"$f":"AP17","v":"Totala transfereringar"},{"$f":"AQ17","v":10400}]
[]
[]
[]
[null,null,null,null,null,null,null,null,null,null,null,null,null,null,null,null,null,null,null,null,null,null,null,null,null,null,null,"Transfereringar",{"$f":"F14","v":0}]
[null,null,null,null,null,null,null,null,null,null,null,null,null,null,null,null,null,null,null,null,null,null,null,null,null,null,null,"Lön",{"$f":"F8+F11","v":0}]
[null,null,null,null,null,null,null,null,null,null,null,null,null,null,null,null,null,null,null,null,null,null,null,null,null,null,null,"Skatt",{"$f":"F10+F12+F22","v":0},null,null,null,null,null,null,null,null,null,"Skatt på transfereringar","SEK",null,"Skatt på transfereringar","SEK"]
[null,null,null,null,null,null,null,null,null,null,null,null,null,null,null,null,null,null,null,null,null,null,null,null,null,null,null,"Totalt",{"$f":"SUM(AC83:AC85)","v":0},null,null,null,null,null,null,null,null,null,{"$f":"AM20","v":"Kommunalskatt"},{"$f":"AN20","v":0},null,{"$f":"AP20","v":"Kommunalskatt"},{"$f":"AQ20","v":0}]
[null,null,null,null,null,null,null,null,null,null,null,null,null,null,null,null,null,null,null,null,null,null,null,null,null,null,null,null,null,null,null,null,null,null,null,null,null,null,{"$f":"AM21","v":"Regionsskattesats:"},0,null,{"$f":"AP21","v":"Regionsskattesats:"},0]
[null,null,null,null,null,null,null,null,null,null,null,null,null,null,null,null,null,null,null,null,null,null,null,null,null,null,null,null,null,null,null,null,null,null,null,null,null,null,"Public service-avgift",0,null,{"$f":"AP22","v":"Public service-avgift"},0]
[null,null,null,null,null,null,null,null,null,null,null,null,null,null,null,null,null,null,null,null,null,null,null,null,null,null,null,null,null,null,null,null,null,null,null,null,null,null,{"$f":"AM23","v":"Statlig skatt:"},{"$f":"AN23","v":0},null,{"$f":"AP23","v":"Statlig skatt:"},{"$f":"AQ23","v":0}]
[null,null,null,null,null,null,null,null,null,null,null,null,null,null,null,null,null,null,null,null,null,null,null,null,null,null,null,null,null,null,null,null,null,null,null,null,null,null,{"$f":"AM24","v":"Värnskatt:"},{"$f":"AN24","v":0},null,{"$f":"AP24","v":"Värnskatt:"},{"$f":"AQ24","v":0}]
[null,null,null,null,null,null,null,null,null,null,null,null,null,null,null,null,null,null,null,null,null,null,null,null,null,null,null,null,null,null,null,null,null,null,null,null,null,null,"Jobbskatteavdrag",0,null,{"$f":"AP25","v":"Jobbskatteavdrag"},0]
[null,null,null,null,null,null,null,null,null,null,null,null,null,null,null,null,null,null,null,null,null,null,null,null,null,null,null,null,null,null,null,null,null,null,null,null,null,null,"Total",0,null,{"$f":"AP26","v":"Total"},0]
[]
[null,null,null,null,null,null,null,null,null,null,null,null,null,null,null,null,null,null,null,null,null,null,null,null,null,null,null,null,null,null,null,null,null,null,null,null,null,null,"Avgifter på transfereringar","SEK",null,"Avgifter på transfereringar","SEK"]
[null,null,null,null,null,null,null,null,null,null,null,null,null,null,null,null,null,null,null,null,null,null,null,null,null,null,null,null,null,null,null,null,null,null,null,null,null,null,{"$f":"AM28","v":"Begravningsavgift:"},{"$f":"AN28","v":0},null,{"$f":"AP28","v":"Begravningsavgift:"},{"$f":"AQ28","v":0}]
[]
[null,null,null,null,null,null,null,null,null,null,null,null,null,null,null,null,null,null,null,null,null,null,null,null,null,null,null,null,null,null,null,null,null,null,null,null,null,null,{"$f":"AM34","v":"Totala transfereringar efter skatt"},{"$f":"AN34","v":10400},null,{"$f":"AP34","v":"Totala transfereringar efter skatt"},{"$f":"AQ34","v":10400}]
[]
[]
[]
[]
[null,null,null,null,null,null,null,null,null,null,null,null,null,null,null,null,null,null,null,null,null,null,null,null,null,null,null,null,null,null,null,null,null,null,null,null,null,null,{"$f":"AJ62-AN97","v":-10400}]

{"sheet":"Tabeller","index":6,"n_rows":12,"n_cols":17,"rows_kept":12,"cut":false,"hidden":false,"merged":[]}
[]
[]
[null,"Skatter & avgifter","Procent",null,null,"Tidigare bruttolön","Dag 1-100","101-200 dagar","201 -300 dagar",null,"Ålder","Bidrag","Ersättningsnivå",null,"Ålder (antal år)","Tid i arbetslöshet (månader)","Ersättning (arbetsgivaravgifter)"]
[null,"Kommunalskatt*",0.20699999999999999,null,null,"< 25 025 ","80% av tidigare lön","80 %, max 760 kr","70% av tidigare lön,  max 760 kr",null,"Över 25 år","Aktivitetsstöd","223 kr per dag",null,"20-25","6-23",1]
[null,"Regionsskattesats*",0.115,null,null,"> 25 025 ","80% av tidigare lön, max 910","80 % av tidigare lön, max 760","70% av tidigare lön,  max 760 kr",null,"18-24 år","Utvecklingsersättning","162 kr per dag",null,"20-25","24-35",2]
[null,"TV-skatt",0.01,null,null,null,null,null,null,null,null,null,null,null,"20-25","36-",2.5]
[null,"Statlig skatt",0.2,null,null,"Tidigare bruttolön","Dag 1-100","101-200 dagar","201 -300 dagar",null,null,null,null,null,"26-65","12-23",1]
[null,"Värnskatt",null,null,null,"< 25 025 ","80% av tidigare lön","80 %, max 1 000 kr","70% av tidigare lön,  max 1 000 kr",null,null,null,null,null,"26-65","24-35",2]
[null,"Begravningsavgift*",2E-3,null,null,"> 25 025 ","80% av tidigare lön, max 1 200 kr","80 % av tidigare lön, max 1 000 kr","70% av tidigare lön,  max 1 000 kr",null,null,null,null,null,"26-65","36-",2.5]
[null,"Not: Medelskattesatsen är ett viktat medelvärde för samtliga kommuner där skatteunderlaget har använts som vägningstal. \nKälla: Skatteverket och Statistiska Centralbyrån"]
[]
[null,null,null,null,"grundersättning",356,510]

{"sheet":"Anställning med ersättning","index":7,"n_rows":28,"n_cols":23,"rows_kept":28,"cut":false,"hidden":false,"merged":[]}
[null,null,null,"Nystartsjobb",null,"Källa: Arbetsförmedlingen",null,null,null,"Introduktionsjobb",null,null,null,null,null,"Lönebidrag",null,null,null,"Yrkesintroduktion"]
["Nyanländ (Ja=1, Nej=0)","Ålder (antal år)","Arbetslöshetstid (Antal månader)","Ersättningskvot (av månadslön)","Ersättningskvot (av lönekostnad)","Ersättningsmax (heltid)","Ersättning (arbetsgivaravgifter)","Max bruttolön",null,"Ersättningskvot (av månadslön)","Ersättningskvot (av lönekostnad)","Ersättningsmax (heltid)","Ersättning för handledning","Max bruttolön",null,"Lönekostnad*arbetsförmåga","Övrig ersättning - Utvecklingsbidrag",null,null,"Ersättning (arbetsgivaravgifter)","Max ersättning","Max bruttolön (efter avdrag av handledning)","Övrig ersättning - Handledning (115 per dag)"]
["Ja","20-25","6-23",0.78549999999999998,null,16128.933333333332,2.5,20000,null,1.05135,0.8,21587.925333333333,2000,20000,null,"-",2800,null,null,1,6451.5733333333328,18750,{"$f":"115*21","v":2415}]
["Ja","20-25","24-35",0.78549999999999998,null,16128.933333333332,2.5,20000]
["Ja","20-25","36-",0.78549999999999998,null,16128.933333333332,2.5,20000]
["Ja","26-65","12-23",0.78549999999999998,null,16128.933333333332,2.5,20000]
["Ja","26-65","24-35",0.78549999999999998,null,16128.933333333332,2.5,20000]
["Ja","26-65","36-",0.78549999999999998,null,16128.933333333332,2.5,20000]
["Nej","20-25","6-23",0.31419999999999998,null,6451.5733333333328,1,20000]
["Nej","20-25","24-35",0.62839999999999996,null,12903.146666666666,2,20000]
["Nej","20-25","36-",0.78549999999999998,null,16128.933333333332,2.5,20000,null,null,null,null,null,null,null,null,null,null,null,"Du som arbetsgivare"]
["Nej","26-65","12-23",0.31419999999999998,null,6451.5733333333328,1,20000,null,null,null,null,null,null,null,null,null,null,null,"betalar för den arbetade tiden."]
["Nej","26-65","24-35",0.62839999999999996,null,12903.146666666666,2,20000,null,"Anställ den som",null,null,null,null,null,null,null,null,null,"står för handledningen eller utbildningen."]
["Nej","26-65","36-",0.78549999999999998,null,16128.933333333332,2.5,20000,null,"deltar i jobb- och utvecklingsgarantin eller",null,null,null,null,null,null,null,null,null,"tar fram en handlednings- eller utbildningsplan."]
[null,null,null,null,null,null,null,null,null,"har fyllt 20 år och som deltagit i Jobbgarantin för ungdomar i minst 200 ersättningsdagar eller",null,null,null,null,null,null,null,null,null,"behöver ett kollektivavtal för yrkesintroduktion eller ett hängavtal till ett sådant."]
[null,"Du som arbetsgivare",null,null,null,null,null,null,null,"har fyllt 20 år och är nyanländ.",null,null,null,null,null,null,null,null,null,"Anställ den som"]
[null,"betalar för den arbetade tiden.",null,null,null,null,null,null,null,"Om anställningen",null,null,null,null,null,null,null,null,null,"är 15-24 år och saknar relevanta yrkeskunskaper."]
[null,"står för handledningen eller utbildningen.",null,null,null,null,null,null,null,"Stödet gäller för anställning som på hel- eller deltid, tillsvidare eller tidsbegränsat.",null,null,null,null,null,null,null,null,null,"är 15-24 år och har varit utan arbete i mer än 3 månader."]
[null,"tar fram en handlednings- eller utbildningsplan.",null,null,null,null,null,null,null,null,null,null,null,null,null,null,null,null,null,"är 25 år eller äldre och är nyanländ som har fått uppehållstillstånd de senaste 36 månaderna."]
[null,"behöver ett kollektivavtal för yrkesintroduktion eller ett hängavtal till ett sådant.",null,null,null,null,null,null,null,null,null,null,null,null,null,null,null,null,null,"är 25 år eller äldre som är långtidsarbetslös."]
[null,"Anställ den som",null,null,null,null,null,null,null,null,null,null,null,null,null,null,null,null,null,"Om anställningen"]
[null,"är 15-24 år och saknar relevanta yrkeskunskaper.",null,null,null,null,null,null,null,"Vem räknas som nyanländ?",null,null,null,null,null,null,null,null,null,"Anställ på hel- eller deltid, minst 75 procent och 6 månader."]
[null,"är 15-24 år och har varit utan arbete i mer än 3 månader.",null,null,null,null,null,null,null,"Har fått uppehållstillstånd inom de senaste 36 månaderna.",null,null,null,null,null,null,null,null,null,"Anställningen ska innehålla minst 15 procent handledning eller utbildning."]
[null,"är 25 år eller äldre och är nyanländ som har fått uppehållstillstånd de senaste 36 månaderna.",null,null,null,null,null,null,null,"Har ett uppehållskort och är familjemedlem till en EU/EES-medborgare."]
[null,"är 25 år eller äldre som är långtidsarbetslös.",null,null,null,null,null,null,null,"Deltar i arbetsmarknadspolitik insats inom lagen om etableringsinsatser för vissa nyanlända invandrare."]
[null,"Om anställningen",null,null,null,null,null,null,null,"Är arbetslös och någon gång under de senaste 12 månaderna varit anvisad till programmet för etableringsinsatser för vissa nyanlända invandrare."]
[null,"Anställ på hel- eller deltid, minst 75 procent och 6 månader.",null,null,null,null,null,null,null,"Har fyllt 20 år."]
[null,"Anställningen ska innehålla minst 15 procent handledning eller utbildning.",null,null,null,null,null,null,null,"Är inskriven på Arbetsförmedlingen."]

{"sheet":"Skatter","index":8,"n_rows":397,"n_cols":7,"rows_kept":397,"cut":false,"hidden":false,"merged":[[1,5,1,6]]}
[]
[null,null,"GRUNDAVDRAG 2021",null,null,"JOBBSKATTEAVDRAG 2021"]
[null,"Fast. ink från","Fast. ink till","Grundavdrag",null,"Inkomst","Jobbskatteavdrag"]
[null,0,20100,0,null,100000,0.1]
[null,20200,47400,20200,null,150000,9.0999999999999998E-2]
[null,47500,47900,20300,null,200000,8.6999999999999994E-2]
[null,48000,48400,20400,null,250000,8.4000000000000005E-2]
[null,48500,48900,20500,null,300000,8.199999999999999E-2]
[null,49000,49400,20600,null,350000,8.1000000000000003E-2]
[null,49500,49900,20700,null,400000,7.5999999999999998E-2]
[null,50000,50400,20800,null,500000,0.06]
[null,50500,50900,20900,null,600000,0.05]
[null,51000,51400,21000,null,700000,4.0999999999999995E-2]
[null,51500,51900,21100,null,900000,2.5000000000000001E-2]
[null,52000,52400,21200,null,1100000,1.4999999999999999E-2]
[null,52500,52900,21300,null,1300000,8.0000000000000002E-3]
[null,53000,53400,21400,null,1500000,3.0000000000000001E-3]
[null,53500,53900,21500]
[null,54000,54400,21600]
[null,54500,54900,21700]
[null,55000,55400,21800]
[null,55500,55900,21900]
[null,56000,56400,22000]
[null,56500,56900,22100]
[null,57000,57400,22200]
[null,57500,57900,22300]
[null,58000,58400,22400]
[null,58500,58900,22500]
[null,59000,59400,22600]
[null,59500,59900,22700]
[null,60000,60400,22800]
[null,60500,60900,22900]
[null,61000,61400,23000]
[null,61500,61900,23100]
[null,62000,62400,23200]
[null,62500,62900,23300]
[null,63000,63400,23400]
[null,63500,63900,23500]
[null,64000,64400,23600]
[null,64500,64900,23700]
[null,65000,65400,23800]
[null,65500,65900,23900]
[null,66000,66400,24000]
[null,66500,66900,24100]
[null,67000,67400,24200]
[null,67500,67900,24300]
[null,68000,68400,24400]
[null,68500,68900,24500]
[null,69000,69400,24600]
[null,69500,69900,24700]
[null,70000,70400,24800]
[null,70500,70900,24900]
[null,71000,71400,25000]
[null,71500,71900,25100]
[null,72000,72400,25200]
[null,72500,72900,25300]
[null,73000,73400,25400]
[null,73500,73900,25500]
[null,74000,74400,25600]
[null,74500,74900,25700]
[null,75000,75400,25800]
[null,75500,75900,25900]
[null,76000,76400,26000]
[null,76500,76900,26100]
[null,77000,77400,26200]
[null,77500,77900,26300]
[null,78000,78400,26400]
[null,78500,78900,26500]
[null,79000,79400,26600]
[null,79500,79900,26700]
[null,80000,80400,26800]
[null,80500,80900,26900]
[null,81000,81400,27000]
[null,81500,81900,27100]
[null,82000,82400,27200]
[null,82500,82900,27300]
[null,83000,83400,27400]
[null,83500,83900,27500]
[null,84000,84400,27600]
[null,84500,84900,27700]
[null,85000,85400,27800]
[null,85500,85900,27900]
[null,86000,86400,28000]
[null,86500,86900,28100]
[null,87000,87400,28200]
[null,87500,87900,28300]
[null,88000,88400,28400]
[null,88500,88900,28500]
[null,89000,89400,28600]
[null,89500,89900,28700]
[null,90000,90400,28800]
[null,90500,90900,28900]
[null,91000,91400,29000]
[null,91500,91900,29100]
[null,92000,92400,29200]
[null,92500,92900,29300]
[null,93000,93400,29400]
[null,93500,93900,29500]
[null,94000,94400,29600]
[null,94500,94900,29700]
[null,95000,95400,29800]
[null,95500,95900,29900]
[null,96000,96400,30000]
[null,96500,96900,30100]
[null,97000,97400,30200]
[null,97500,97900,30300]
[null,98000,98400,30400]
[null,98500,98900,30500]
[null,99000,99400,30600]
[null,99500,99900,30700]
[null,100000,100400,30800]
[null,100500,100900,30900]
[null,101000,101400,31000]
[null,101500,101900,31100]
[null,102000,102400,31200]
[null,102500,102900,31300]
[null,103000,103400,31400]
[null,103500,103900,31500]
[null,104000,104400,31600]
[null,104500,104900,31700]
[null,105000,105400,31800]
[null,105500,105900,31900]
[null,106000,106400,32000]
[null,106500,106900,32100]
[null,107000,107400,32200]
[null,107500,107900,32300]
[null,108000,108400,32400]
[null,108500,108900,32500]
[null,109000,109400,32600]
[null,109500,109900,32700]
[null,110000,110400,32800]
[null,110500,110900,32900]
[null,111000,111400,33000]
[null,111500,111900,33100]
[null,112000,112400,33200]
[null,112500,112900,33300]
[null,113000,113400,33400]
[null,113500,113900,33500]
[null,114000,114400,33600]
[null,114500,114900,33700]
[null,115000,115400,33800]
[null,115500,115900,33900]
[null,116000,116400,34000]
[null,116500,116900,34100]
[null,117000,117400,34200]
[null,117500,117900,34300]
[null,118000,118400,34400]
[null,118500,118900,34500]
[null,119000,119400,34600]
[null,119500,119900,34700]
[null,120000,120400,34800]
[null,120500,120900,34900]
[null,121000,121400,35000]
[null,121500,121900,35100]
[null,122000,122400,35200]
[null,122500,122900,35300]
[null,123000,123400,35400]
[null,123500,123900,35500]
[null,124000,124400,35600]
[null,124500,124900,35700]
[null,125000,125400,35800]
[null,125500,125900,35900]
[null,126000,126400,36000]
[null,126500,126900,36100]
[null,127000,127400,36200]
[null,127500,127900,36300]
[null,128000,128400,36400]
[null,128500,128900,36500]
[null,129000,129400,36600]
[null,129500,148500,36700]
[null,148600,149500,36600]
[null,149600,150500,36500]
[null,150600,151500,36400]
[null,151600,152500,36300]
[null,152600,153500,36200]
[null,153600,154500,36100]
[null,154600,155500,36000]
[null,155600,156500,35900]
[null,156600,157500,35800]
[null,157600,158500,35700]
[null,158600,159500,35600]
[null,159600,160500,35500]
[null,160600,161500,35400]
[null,161600,162500,35300]
[null,162600,163500,35200]
[null,163600,164500,35100]
[null,164600,165500,35000]
[null,165600,166500,34900]
[null,166600,167500,34800]
[null,167600,168500,34700]
[null,168600,169500,34600]
[null,169600,170500,34500]
[null,170600,171500,34400]
[null,171600,172500,34300]
[null,172600,173500,34200]
[null,173600,174500,34100]
[null,174600,175500,34000]
[null,175600,176500,33900]
[null,176600,177500,33800]
[null,177600,178500,33700]
[null,178600,179500,33600]
[null,179600,180500,33500]
[null,180600,181500,33400]
[null,181600,182500,33300]
[null,182600,183500,33200]
[null,183600,184500,33100]
[null,184600,185500,33000]
[null,185600,186500,32900]
[null,186600,187500,32800]
[null,187600,188500,32700]
[null,188600,189500,32600]
[null,189600,190500,32500]
[null,190600,191500,32400]
[null,191600,192500,32300]
[null,192600,193500,32200]
[null,193600,194500,32100]
[null,194600,195500,32000]
[null,195600,196500,31900]
[null,196600,197500,31800]
[null,197600,198500,31700]
[null,198600,199500,31600]
[null,199600,200500,31500]
[null,200600,201500,31400]
[null,201600,202500,31300]
[null,202600,203500,31200]
[null,203600,204500,31100]
[null,204600,205500,31000]
[null,205600,206500,30900]
[null,206600,207500,30800]
[null,207600,208500,30700]
[null,208600,209500,30600]
[null,209600,210500,30500]
[null,210600,211500,30400]
[null,211600,212500,30300]
[null,212600,213500,30200]
[null,213600,214500,30100]
[null,214600,215500,30000]
[null,215600,216500,29900]
[null,216600,217500,29800]
[null,217600,218500,29700]
[null,218600,219500,29600]
[null,219600,220500,29500]
[null,220600,221500,29400]
[null,221600,222500,29300]
[null,222600,223500,29200]
[null,223600,224500,29100]
[null,224600,225500,29000]
[null,225600,226500,28900]
[null,226600,227500,28800]
[null,227600,228500,28700]
[null,228600,229500,28600]
[null,229600,230500,28500]
[null,230600,231500,28400]
[null,231600,232500,28300]
[null,232600,233500,28200]
[null,233600,234500,28100]
[null,234600,235500,28000]
[null,235600,236500,27900]
[null,236600,237500,27800]
[null,237600,238500,27700]
[null,238600,239500,27600]
[null,239600,240500,27500]
[null,240600,241500,27400]
[null,241600,242500,27300]
[null,242600,243500,27200]
[null,243600,244500,27100]
[null,244600,245500,27000]
[null,245600,246500,26900]
[null,246600,247500,26800]
[null,247600,248500,26700]
[null,248600,249500,26600]
[null,249600,250500,26500]
[null,250600,251500,26400]
[null,251600,252500,26300]
[null,252600,253500,26200]
[null,253600,254500,26100]
[null,254600,255500,26000]
[null,255600,256500,25900]
[null,256600,257500,25800]
[null,257600,258500,25700]
[null,258600,259500,25600]
[null,259600,260500,25500]
[null,260600,261500,25400]
[null,261600,262500,25300]
[null,262600,263500,25200]
[null,263600,264500,25100]
[null,264600,265500,25000]
[null,265600,266500,24900]
[null,266600,267500,24800]
[null,267600,268500,24700]
[null,268600,269500,24600]
[null,269600,270500,24500]
[null,270600,271500,24400]
[null,271600,272500,24300]
[null,272600,273500,24200]
[null,273600,274500,24100]
[null,274600,275500,24000]
[null,275600,276500,23900]
[null,276600,277500,23800]
[null,277600,278500,23700]
[null,278600,279500,23600]
[null,279600,280500,23500]
[null,280600,281500,23400]
[null,281600,282500,23300]
[null,282600,283500,23200]
[null,283600,284500,23100]
[null,284600,285500,23000]
[null,285600,286500,22900]
[null,286600,287500,22800]
[null,287600,288500,22700]
[null,288600,289500,22600]
[null,289600,290500,22500]
[null,290600,291500,22400]
[null,291600,292500,22300]
[null,292600,293500,22200]
[null,293600,294500,22100]
[null,294600,295500,22000]
[null,295600,296500,21900]
[null,296600,297500,21800]
[null,297600,298500,21700]
[null,298600,299500,21600]
[null,299600,300500,21500]
[null,300600,301500,21400]
[null,301600,302500,21300]
[null,302600,303500,21200]
[null,303600,304500,21100]
[null,304600,305500,21000]
[null,305600,306500,20900]
[null,306600,307500,20800]
[null,307600,308500,20700]
[null,308600,309500,20600]
[null,309600,310500,20500]
[null,310600,311500,20400]
[null,311600,312500,20300]
[null,312600,313500,20200]
[null,313600,314500,20100]
[null,314600,315500,20000]
[null,315600,316500,19900]
[null,316600,317500,19800]
[null,317600,318500,19700]
[null,318600,319500,19600]
[null,319600,320500,19500]
[null,320600,321500,19400]
[null,321600,322500,19300]
[null,322600,323500,19200]
[null,323600,324500,19100]
[null,324600,325500,19000]
[null,325600,326500,18900]
[null,326600,327500,18800]
[null,327600,328500,18700]
[null,328600,329500,18600]
[null,329600,330500,18500]
[null,330600,331500,18400]
[null,331600,332500,18300]
[null,332600,333500,18200]
[null,333600,334500,18100]
[null,334600,335500,18000]
[null,335600,336500,17900]
[null,336600,337500,17800]
[null,337600,338500,17700]
[null,338600,339500,17600]
[null,339600,340500,17500]
[null,340600,341500,17400]
[null,341600,342500,17300]
[null,342600,343500,17200]
[null,343600,344500,17100]
[null,344600,345500,17000]
[null,345600,346500,16900]
[null,346600,347500,16800]
[null,347600,348500,16700]
[null,348600,349500,16600]
[null,349600,350500,16500]
[null,350600,351500,16400]
[null,351600,352500,16300]
[null,352600,353500,16200]
[null,353600,354500,16100]
[null,354600,355500,16000]
[null,355600,356500,15900]
[null,356600,357500,15800]
[null,357600,358500,15700]
[null,358600,359500,15600]
[null,359600,360500,15500]
[null,360600,361500,15400]
[null,361600,362500,15300]
[null,362600,363500,15200]
[null,363600,364500,15100]
[null,364600,365500,15000]
[null,365600,366500,14900]
[null,366600,367500,14800]
[null,367600,368500,14700]
[null,368600,369500,14600]
[null,369600,370500,14500]
[null,370600,371500,14400]
[null,371600,372500,14300]
[null,372600,373500,14200]
[null,373600,374500,14100]
[null,374600,null,14000]

{"sheet":"Listor","index":9,"n_rows":8,"n_cols":7,"rows_kept":8,"cut":false,"hidden":false,"merged":[]}
[]
["Organisation","Sysselsättningskrav","Anställningsstöd","Ålder","Tid i arbetslöshet","Nyanländ","A-kassa"]
[]
["Kommunal","Anställning","Introduktionsjobb","20-23","<6 mån","Ja","Ja"]
["Statlig","Lärling","Nystartsjobb","24-25","6-11 mån"]
["Regional","Praktik","Yrkesintroduktion","26-65","12-23 mån"]
[null,null,null,null,"24-35 mån"]
[null,null,null,null,"36- mån"]